Workbook

Sheet Directions
B5: Welcome to SCRP Excel Upload Cost Estimates Template
B7: Please enable macros when opening this excel document. You will be prompted to enable macros when opening this document.

Sheet CostEstimate
A1: est_description | B1: location_type | C1: est_location | D1: upgrade_exceeds_replacement | E1: est_category | F1: est_subcategory | G1: cost_catalog_item | H1: not_in_cost_catalog | I1: cost_catalog_avg | J1: est_cost | K1: cost_justification | L1: est_covered_equipment | M1: quantity_of_existing_equipment | N1: replacement_equipment | O1: quantity_of_replacement_equipment | P1: cost_catalog

Sheet Category - Subcategory (hidden)
A1: Access Layer | B1: Distribution Layer | C1: Core Layer | D1: Software | E1: Services
A2: Optical line terminal equipment (OLT) | B2: Routers | C2: EPC | D2: Software | E2: Preplanning
A3: Access WDM (Wavelength Division Multiplexing) & OTN (Optical Transport Network) | B3: Switches | C3: Cloud Core | D3: Licenses | E3: Site Acquisition
A4: End-User Termination Point - FTTH | B4: FTTH (Fiber To The Home) - GPON (Gigabyte Passive Optical Network) / XGS (10-Gigabit-capable symmetric passive optical network) | C4: RAN Core / EMS | E4: Site Surveys
A5: Ethernet Service Access Node (ESAN) (includes outdoor cabinet & install) | B5: VDSL (Very high-speed Digital Subscriber Line) Access Network | C5: WDM & OTN – Core Equipment (Wavelength Division Multiplexing & Optical Transport Network | E5: RF Engineering
A6: LAN MDUs | B6: Cell Edge Aggregation | C6: Core Server Hardware | E6: Interim Facility Requirement
A7: Home network and customer premises equipment (CPE) | B7: Network security equipment | C7: Operation Support Systems (OSS) | E7: Leasing
A8: Customer Outreach to End-User - Public Relations/Notification | B8: Distribution WDM & OTN | C8: Orchestration | E8: Project Management
A9: Cable coaxial media converters | B9: Microwave PTP (point to point links) | C9: Cloud Computing | E9: Spectrum Planning and Management
A10: WLAN (Wireless Local Area Network) | B10: Microwave PTMP (point to multipoint) | C10: Optical Transmission | E10: Training
A11: Site Cabinets - Optical Network Units (ONU) | B11: Microwave Antennas - Single Pole | C11: Data Transmission | E11: Resident Engineer/Staff
B12: Microwave Antennas - Dual Polarization | E12: VoLTE voice coordination with providers
B13: Microwave Antennas - Dual Polarization – Ultra High Performance | E13: Structural Engineering / Tower studies
B14: Microwave Antennas - mmWave Flat Panel | E14: Negotiating with tower owners
B15: Antenna - LTE (Long Term Evolution) Multi-band, >16dBi | E15: Network Engineering Services
B16: Antenna - LTE & CBRS (Citizens Broadband Radio Service), >16dBi | E16: Tower/Water Tower/Barn/Rooftop Preparation
B17: Antenna - CBRS only | E17: Antenna/Radio R&R - Tower up to 200', not water tank
B18: Hybrid Cable & Radio/Antenna Jumpers, Tower Ancillary Components | E18: Antenna/Radio R&R - Non-penetrating Roof Mounted
B19: LAN MDUs (Local Area Network Multi-Dwelling Units) | E19: Shelter Cable Entry Port Additions
B20: Bearer - 5G Transport connects all categories of the mobile network infrastructure, including fronthaul, midhaul, and backhaul | E20: Ground Buss Bars
B21: LTE FDD (Frequency Division Duplex) | E21: Tower Modifications
B22: LTE TDD (Time Division Duplex) | E22: Site Work
B23: LTE BBU (Baseband Units) | E23: Cable Sweep & PIM Testing
B24: 1 Sector Bundle - 10/20MHz channels - RU (Radio Unit), CDU (Cabinet Distributed Unit), shelf, cables, SFP's, and antennas | E24: Connectivity Upgrades or Extensions
B25: 1 Sector Bundle - 40MHz channels - RU, CDU, DU shelf, cables, SFP's, and antennas | E25: Tower/Installation Crews
B26: 1 Sector Bundle - 60MHz channels - RU, CDU, DU shelf, cables, SFP's, and antennas | E26: Helicopter Lift (e.g., for a rooftop tower, complex tower, tall structure, or terrain constrained location requiring helicopter lift)
B27: Rapid Deployed, Self-contained 5G cell site with attached Core | E27: Equipment Rental
B28: Bundled BBU/RRH (Base Band Unit/Remote Radio Head) Fixed Wireless | E28: Virtual/Cloud Core Deployment
B29: Bundled BBU/RRH (Base Band Unit/Remote Radio Head) Mobility Wireless - nonMIMO | E29: GPON/XGS (FTTH) Deployments
B30: Bundled BBU/RRH (Base Band Unit/Remote Radio Head) Mobility Wireless - mMIMO | E30: Location (Facility) Upgrades for New Equipment
B31: Bundled Open-RAN | E31: Field Engineering
B32: SAS Integration Costs (per Radio) | E32: Off-site Integration & Staging
B33: Open vRAN eNodeB Model is based on single band 50 site cluster. It includes RRU (Remote Radio Unit)/CU (Control Unit)/DU (Distributed Unit)/SW (Software)/NFVi (Network Functions Virtualization infrastructure). SW include all features, power licenses, optional features | E33: Lab Testing - Interoperability Testing and Compliance for New Equipment
B34: RAN (Open RAN/ vRAN) Components | E34: National Environmental Policy Act (NEPA) & National Historic Preservation Act (NHPA)
B35: DU | E35: Attorney
B36: CU (Control Unit) | E36: Legal Fees Zoning/Permitting issues
B37: SPF - Small form-factor pluggable transceiver | E37: Legal Fees Zoning/Permitting issues - Microwave
B38: GPS | E38: Disposal costs/Logistics
B39: GSM&UMTS (Universal Mobile Telecommunications System) | E39: Compliant Disposal
B40: Small Cell | E40: FCC filing fees
B41: Tower Shelter | E41: Tariff Filings
B42: Outdoor Cabinets | E42: Accounting
B43: Indoor Cabinets | E43: Security - onsite
E44: Snow Cat Usage (8-12 hours day, plus operator expense)
E45: Storage, Warehousing, Material Handling
E46: KPIs Pre & Post Installation Support
E47: Drive Testing - Signal Strength Verification
E48: 911 & E911 Services and Drive Test Services (47 CFR § 9.10(i)(2)(i)(B)(4)) (50m x/y)
E49: End-User Location - Truck roll or self-install (per end-user)
E50: Services Specific to: Alaska, American Samoa, Hawaii, Puerto Rico and Virgin Islands Plus 30-50% additional costs for the service items listed in the conterminous (contiguous) United States. Additional taxes, duties and/or custom fees will be required

Sheet Subcategory - Catalog Item (hidden)
A1: Optical line terminal equipment (OLT) | B1: Access WDM (Wavelength Division Multiplexing) & OTN (Optical Transport Network) | C1: End-User Termination Point - FTTH | D1: Ethernet Service Access Node (ESAN) (includes outdoor cabinet & install) | E1: LAN MDUs | F1: Home network and customer premises equipment (CPE) | G1: Customer Outreach to End-User - Public Relations/Notification | H1: Cable coaxial media converters | I1: WLAN (Wireless Local Area Network) | J1: Site Cabinets - Optical Network Units (ONU) | K1: Routers | L1: Switches | M1: FTTH (Fiber To The Home) - GPON (Gigabyte Passive Optical Network) / XGS (10-Gigabit-capable symmetric passive optical network) | N1: VDSL (Very high-speed Digital Subscriber Line) Access Network | O1: Cell Edge Aggregation | P1: Network security equipment | Q1: Distribution WDM & OTN | R1: Microwave PTP (point to point links) | S1: Microwave PTMP (point to multipoint) | T1: Microwave Antennas - Single Pole | U1: Microwave Antennas - Dual Polarization | V1: Microwave Antennas - Dual Polarization – Ultra High Performance | W1: Microwave Antennas - mmWave Flat Panel | X1: Antenna - LTE (Long Term Evolution) Multi-band, >16dBi | Y1: Antenna - LTE & CBRS (Citizens Broadband Radio Service), >16dBi | Z1: Antenna - CBRS only | AA1: Hybrid Cable & Radio/Antenna Jumpers, Tower Ancillary Components | AB1: LAN MDUs (Local Area Network Multi-Dwelling Units) | AC1: Bearer - 5G Transport connects all categories of the mobile network infrastructure, including fronthaul, midhaul, and backhaul | AD1: LTE FDD (Frequency Division Duplex) | AE1: LTE TDD (Time Division Duplex) | AF1: LTE BBU (Baseband Units) | AG1: 1 Sector Bundle - 10/20MHz channels - RU (Radio Unit), CDU (Cabinet Distributed Unit), shelf, cables, SFP's, and antennas | AH1: 1 Sector Bundle - 40MHz channels - RU, CDU, DU shelf, cables, SFP's, and antennas | AI1: 1 Sector Bundle - 60MHz channels - RU, CDU, DU shelf, cables, SFP's, and antennas | AJ1: Rapid Deployed, Self-contained 5G cell site with attached Core | AK1: Bundled BBU/RRH (Base Band Unit/Remote Radio Head) Fixed Wireless | AL1: Bundled BBU/RRH (Base Band Unit/Remote Radio Head) Mobility Wireless - nonMIMO | AM1: Bundled BBU/RRH (Base Band Unit/Remote Radio Head) Mobility Wireless - mMIMO | AN1: Bundled Open-RAN | AO1: SAS Integration Costs (per Radio) | AP1: Open vRAN eNodeB Model is based on single band 50 site cluster. It includes RRU (Remote Radio Unit)/CU (Control Unit)/DU (Distributed Unit)/SW (Software)/NFVi (Network Functions Virtualization infrastructure). SW include all features, power licenses, optional features | AQ1: RAN (Open RAN/ vRAN) Components | AR1: DU | AS1: CU (Control Unit) | AT1: SPF - Small form-factor pluggable transceiver | AU1: GPS | AV1: GSM&UMTS (Universal Mobile Telecommunications System) | AW1: Small Cell | AX1: Tower Shelter | AY1: Outdoor Cabinets | AZ1: Indoor Cabinets | BA1: EPC | BB1: Cloud Core | BC1: RAN Core / EMS | BD1: WDM & OTN – Core Equipment (Wavelength Division Multiplexing & Optical Transport Network | BE1: Core Server Hardware | BF1: Operation Support Systems (OSS) | BG1: Orchestration | BH1: Cloud Computing | BI1: Optical Transmission | BJ1: Data Transmission | BK1: Software | BL1: Licenses | BM1: Preplanning | BN1: Site Acquisition | BO1: Site Surveys | BP1: RF Engineering | BQ1: Interim Facility Requirement | BR1: Leasing | BS1: Project Management | BT1: Spectrum Planning and Management | BU1: Training | BV1: Resident Engineer/Staff | BW1: VoLTE voice coordination with providers | BX1: Structural Engineering / Tower studies | BY1: Negotiating with tower owners | BZ1: Network Engineering Services | CA1: Tower/Water Tower/Barn/Rooftop Preparation | CB1: Antenna/Radio R&R - Tower up to 200', not water tank | CC1: Antenna/Radio R&R - Non-penetrating Roof Mounted | CD1: Shelter Cable Entry Port Additions | CE1: Ground Buss Bars | CF1: Tower Modifications | CG1: Site Work | CH1: Cable Sweep & PIM Testing | CI1: Connectivity Upgrades or Extensions | CJ1: Tower/Installation Crews | CK1: Helicopter Lift (e.g., for a rooftop tower, complex tower, tall structure, or terrain constrained location requiring helicopter lift) | CL1: Equipment Rental | CM1: Virtual/Cloud Core Deployment | CN1: GPON/XGS (FTTH) Deployments | CO1: Location (Facility) Upgrades for New Equipment | CP1: Field Engineering | CQ1: Off-site Integration & Staging | CR1: Lab Testing - Interoperability Testing and Compliance for New Equipment | CS1: National Environmental Policy Act (NEPA) & National Historic Preservation Act (NHPA) | CT1: Attorney | CU1: Legal Fees Zoning/Permitting issues | CV1: Legal Fees Zoning/Permitting issues - Microwave | CW1: Disposal costs/Logistics | CX1: Compliant Disposal | CY1: FCC filing fees | CZ1: Tariff Filings | DA1: Accounting | DB1: Security - onsite | DC1: Snow Cat Usage (8-12 hours day, plus operator expense) | DD1: Storage, Warehousing, Material Handling | DE1: KPIs Pre & Post Installation Support | DF1: Drive Testing - Signal Strength Verification | DG1: 911 & E911 Services and Drive Test Services (47 CFR § 9.10(i)(2)(i)(B)(4)) (50m x/y) | DH1: End-User Location - Truck roll or self-install (per end-user) | DI1: Services Specific to: Alaska, American Samoa, Hawaii, Puerto Rico and Virgin Islands Plus 30-50% additional costs for the service items listed in the conterminous (contiguous) United States. Additional taxes, duties and/or custom fees will be required | DK1: =IF(ISERROR(MacrosEnabled()&NOW()),"Macros are disabled","Macros are enabled") -> Macros are disabled
A2: Optical line terminal equipment (OLT) | B2: Access WDM & OTN equipment, Small network, includes subscription (per node) | C2: Customer ONT - indoor | D2: Ethernet Service Access Node (ESAN) (includes outdoor cabinet & install) | E2: LAN MDUs (Local Area Network Multi-Dwelling Units), Small, includes subscription | F2: CBRS/B48 Category 15 15-19 dBi Gain Outdoor Unit | G2: Legal review of customer notices & communications; public relations - (2-4 hours) | H2: Cable coaxial media converters | I2: WLAN - small | J2: Site Cabinets - Optical Network Units (ONU) | K2: Small Cell Site Router capable of L2/Ethernet and IP/MPLS with a mix of 1GE (8 or fewer) and 10GE interfaces (2 or fewer) | L2: Switches - small business and campus networks, cloud grade | M2: GPON/XGS Element Management System (10k subs) | N2: VDSL - ISP vs. OSP (Inside Plant vs. Outside Plant) | O2: Edge Aggregation - for 8 Cell Sites | P2: Network security equipment - small network | Q2: WDM & OTN equipment, Small network, includes subscription (per node) | R2: Microwave Radio pair (5.8 GHz 2+0 500 Mbps basic hop - 11 GHz 4+0 2.8 Gbps hop with switching) | S2: 28/39 GHz PTMP Microwave Hub Node (access point), includes 90° sector antenna (LMDS A2/A3 or B Band) | T2: 0.3 - 1.2 meter (1 - 4 foot) | U2: 0.3 - 1.2 meter (1 - 4 foot) | V2: 0.3 - 1.2 meter (1 - 4 foot) | W2: Flat Panel | X2: 2 port - 2T2R through 8 port - 8T8R | Y2: 8 port - 8T8R through 20 port - 20T20R | Z2: 2 port - 2T2R through 16 port - 16T16R | AA2: Cable breakout interconnect 100', maximum of 12 power conductors & 24 fiber | AB2: Small Networks | AC2: Bearer - small network | AD2: 2-port capable, low-mid band radio for 1 sector (5Mhz, FDD, LTE or W-CDMA (Wideband Code Division Multiple Access)) | AE2: 4-port capable, low-mid band radio for 1 sector (20Mhz, TDD) | AF2: Rack Mounted or Outdoor Mounted baseband unit (BBU) | AG2: Single sector CBRS 4T4R base station and Baseband Unit - 10/20MHz channel | AH2: Single sector CBRS 4T4R base station and Baseband Unit - 40MHz channel | AI2: Single sector CBRS 4T4R base station and Baseband Unit - 60MHz channel | AJ2: HIGH - 5G Fully Integrated, EMP Hardened Cellsite with Mobile Edge compute and embedded 5G Core - 600mhz - 6ghz; 30ghz and up + Counter UAS Radar & Video Surveillance | AK2: 2T2R-8T8R eNodeB with 3 sectors, single spectrum band of up to 20 MHz/sector. Fixed Wireless features. Range due to Low Power radio (20W) vs High Power radio (up to 320W). Price includes Remote Radio Units (RRU), Base Band Unit (BBU), Ancillaries, Software Features, and Capacity Licensing. Price excludes antennas, tower cabling, tower ancillaries and over voltage protection (OVP) | AL2: 2T2R-8T8R eNodeB with 3 sectors, single spectrum band of up to 20 MHz/sector. Mobility features. Range due to Low Power radio (20W) vs High Power radio (up to 320W). Price includes RRHs, BBU, Ancillaries, Software Features, and Capacity Licensing. Price excludes antennas, tower cabling, tower ancillaries and over voltage protection (OVP) | AM2: mMIMO eNodeB 3 Sector Per Band (64T64R 20 MHz 1 Band - 64T64R 60 MHz 1 Band with Advanced Mobility Features) | AN2: Macrocell 4G 20MHz Carrier (Bundle - Antennas, RU/RRU, BBU Software, GPS Receiver, STU (Subscriber Terminal Unit), RIU (Radio Interface Unit), Mechanical Mounting, Cables and Connectors, SFPs (Small Form-Factor Pluggable)) | AO2: SAS Integration Costs (per Radio) | AP2: B71 (3 sector site) or B5 (3 sector) One RRU Type | AQ2: RRU - band 71 - Perpetual license, w/ SW; all-inclusive power, features, carriers etc. | AR2: Multi-Access Edge Server (indoor) | AS2: Edge Computing vCompute NODE | AT2: SFP - 10G | AU2: GPS Antenna, Lightning Arrestor, GPS Splitter 1:8, Cable Assembly-Coaxial (35') | AV2: 3G/UMTS RNC (Radio Network Controller) Small - Medium (50 - 1000 nodes) | AW2: Small Cell, LTE B42 B43 B48 integrated antenna eNodeB | AX2: New shelter: Shelter, delivery, crane, labor, pad | AY2: Cabinet, Power Distribution Unit, 4 to 8 Rectifiers, 1 to 2 Battery Strings, optional Heat Exchanger | AZ2: Indoor cabinet (small to large site, optional battery backup included. | BA2: 4G/5G-NSA Evolved Packet Core - Small, SGW, PGW, MME (10K subs to 50K subs, includes deployment) | BB2: Cloud - Virtual EPC (SAE-GW, Firewall, Carrier Grade NAT, eCGF, MME, PCRF, Small Network), includes Design, Installation, Commissioning, Integration Services | BC2: IMS and RAN Element Management System, Compact EMS with Basic Licensing, includes hardware (10K to 50K subs), includes Design, Installation, Commissioning, Integration Services | BD2: Core Equipment for WDM & OTN (per node) | BE2: RGS Server | BF2: OSS/BSS Design - Process Automation & Network Roll-out (based on 1 million subscribers) | BG2: Orchestration Design - Service Design & Creation (based on 1 million subscribers) | BH2: Cloud Computing | BI2: Small to Medium Network | BJ2: Small to Medium Network | BK2: Active Ethernet (AE) functionality for provisioning and alarming | BL2: 4G IOT License - Perpetual - per Subscriber | BM2: NTP (Notice to Proceed) Package (per site) | BN2: Existing Colocation (per site, flat fee) – (Low) without A&E, permitting and Legal; (High) full scope | BO2: Drone - Visual Inspection (per site) | BP2: Construction Drawings (per site) | BQ2: Cost of temporary site (COW) during tower replacement or modification | BR2: Negotiation of co-location contracts/leases (2-4 hours per contract) | BS2: Project Management - carrier internal (per person per month) | BT2: Leasing or purchase of additional spectrum and related negotiations - (8-10 hours per agreement) | BU2: Product, Engineering and Operations Training Courses (classroom or web per student/day) | BV2: RAN/CORE Engineer - to provide on-site support during and after turn-over for 1 year (per person/per quarter) | BW2: VOLTE Optimization (per site) | BX2: Structural Analysis - complexity of design (per site) | BY2: Executed Agreement (per site) | BZ2: CIQ creation/review (per site) | CA2: Remove RRH/RRU, Antenna and cabling | CB2: Rip & Replace - Up to (3) Antenna Replacement (Install/Swap up to (3) new antennas, with associated jumpers, plumbing/re-plumbing etc.) | CC2: Rip & Replace - Up to (3) Antenna Replacement (Install/Swap up to (3) new antennas, with associated jumpers, plumbing/re-plumbing etc.) | CD2: Up to six (6) entry ports (provide and install) | CE2: Tower or Shelter Buss bar addition | CF2: Modification Design (per site) | CG2: Site Work | CH2: PIM Test and Remediate* 0 to 12 Paths | CI2: Review of interconnection and colocation agreements - (2-5 hours per contract) | CJ2: Mobilization Less than or Equal to 250 Miles (2-4 Member Crew) | CK2: Max 1000 lbs - 6 hr day rate + hourly | CL2: Crane - Ave 8 hour hook time based on tower height, miles, size, hourly rate | CM2: Cloud - Virtual EPC (SAE-GW, Firewall, Carrier Grade NAT, eCGF, MME, PCRF, up to 10k subscribers) | CN2: Backbone WDM/optical transport networking equipment – (per network) | CO2: Research to ensure compliance with tower standards (ANSI/TIA-222-H) due to modifications triggering non-compliant towers to comply - (3-5 hours per site) | CP2: Optical Fiber Optic Characterization - 8 Strands | CQ2: NAIC Integration Add-on for UPS, Router, Switch, Server, Appliance, Storage 10RU+ per Device (from 5 to 15 devices) | CR2: Engineering consulting for network planning & scenario analysis (remote per week) | CS2: National Environmental Policy Act (NEPA) & National Historic Preservation Act (NHPA) | CT2: Negotiate and review vendor contracts - (6-12 hours per contract) | CU2: Zoning and Permitting determination (per site) | CV2: FCC Licensing - Microwave - (1-2 hours) | CW2: Staging, transportation, warehousing and disposal (per site) | CX2: Inventory, processing, destruction, disposal, recycling reporting and certification of Recycling - Citing ITAR (per site) - Transport not included | CY2: New, Modification (Microwave) - per call sign (with$250 regulatory fee) | CZ2: Tariff Filing Fee (per transmittal or cover letter) | DA2: Review of Depreciation Update Study (single state) | DB2: Fence/Compound Work (per site) | DC2: Snow Cat Usage (8-12 hours day, plus operator expense) | DD2: Contract review & negotiations (2-4 hours) | DE2: Pre and post swap cluster KPI monitoring (per site) | DF2: Pre and post swap cluster drive testing (per site) | DG2: Rehome E911 Drive Cost (per Cell Site) - ensuring call connects to right 911 | DH2: End User Location - Truck roll or self-install (per end user) | DI2: Mobilization Costs - Virgin Islands (per site)
B3: Access WDM & OTN equipment, Medium to Large network, includes subscription (per node) | C3: Customer ONT - outdoor | E3: LAN MDUs (Local Area Network Multi-Dwelling Units), Medium, includes subscription | F3: CBRS/B48 Category 15 High Gain Indoor Unit | H3: CMTS (per node) | I3: WLAN - medium to large network | J3: Fiber - FTTP (Fiber To The Premises) - per mile, trenched & buried, rural, flat, rocky - to urban | K3: Medium Cell Site Router capable of L2/Ethernet and IP/MPLS with a mix of 1GE (20 or fewer) and 10GE interfaces (8 or fewer) | L3: Switches - medium business and campus networks, cloud grade | M3: GPON/XGS OLT | O3: Edge Aggregation - for 16 Cell Sites | P3: Network security equipment - medium network | Q3: WDM & OTN equipment, Medium to Large network, includes subscription (per node) | R3: Microwave Radio pair (Indoor, split-mount, small varying radio link capacities and capabilities | S3: 28/39 GHz PTMP Microwave Remote Node, includes 1' parabolic antenna | T3: 1.8 - 3.0 meter (6 - 10 foot) | U3: 1.8 - 3.0 meter (6 - 10 foot) | V3: 1.8 - 3.0 meter (6 - 10 foot) | W3: 0.3 to 0.6 meter (1-2 foot, single polarization) | X3: 10 port - 10T10R through 20 port - 20T20R | AA3: Cable breakout interconnect 200', maximum of 12 power conductors & 24 fiber | AB3: Medium Networks | AC3: Bearer - medium to large network | AD3: 4-port capable, low-mid band radio for 1 sector (5Mhz, FDD, LTE or W-CDMA) | AE3: 8-port capable, low-mid band radio for 1 sector (20Mhz, TDD) | AF3: W-CDMA RNC (Radio Network Controller, small network, <50k subscribers) | AG3: Single sector CBRS 64T64R base station and Baseband Unit - 10/20MHz channel | AH3: Single sector CBRS 64T64R base station and Baseband Unit - 40MHz channel | AI3: Single sector CBRS 64T64R base station and Baseband Unit - 60MHz channel | AJ3: MEDIUM - 5G Fully Integrated, EMP Hardened Cellsite with Mobile Edge compute and embedded 5G Core - 600mhz - 6ghz; 30ghz and up + Diverse Backhaul (Free space Optic and/or MM wave) | AK3: mMIMO eNodeB with 3 sectors, single spectrum band of up to 20 MHz/sector. Fixed Wireless features. Range due to Low Power radio (120W) vs High Power radio (up to 240W). Price includes Radio+Antenna, BBU, Ancillaries, Software Features, and Capacity Licensing. Price excludes tower cabling, tower ancillaries and over voltage protection (OVP) | AN3: Macrocell - 5G Sub6 100MHz Carrier (Bundle - Antennas, RU/RRU, BBU Software, GPS Receiver, STU, RIU, Mechanical Mounting, Cables and Connectors, SFPs) | AP3: B41 (3 sector site) One RRU Type | AQ3: RRU - band 41 - Perpetual license, w/ SW; all-inclusive power, features, carriers etc. | AR3: Multi-Access Edge Server (outdoor) | AS3: vCU Server | AV3: 3G/UMTS NodeB HW/SW addition to eNodeB | AY3: Outdoor Cabinet Install (Provide and Install) | AZ3: Indoor Power Plants / Rectifiers / Batteries | BA3: 4G/5G-NSA Evolved Packet Core - Medium, SGW, PGW, MME (50K subs to 200K subs), cost per site, includes deployment | BB3: Cloud - Virtual EPC (SAE-GW, Firewall, Carrier Grade NAT, eCGF, MME, PCRF, Medium Network), includes Design, Installation, Commissioning, Integration Services | BC3: IMS and RAN Element Management System, Medium EMS with Basic Licensing, includes hardware (50K to 100K subs), includes Design, Installation, Commissioning, Integration Services | BE3: RGS-E Server | BF3: OSS/BSS Design - Network & Service Assurance (based on 1 million subscribers) | BG3: Orchestration Design - Universal Cloud Orchestration (based on 1 million subscribers) | BI3: Medium to Large Network | BJ3: Medium to Large Network | BK3: Voice Core | BL3: 4G Connectivity License - Perpetual - per Subscriber | BM3: A&E Walk (per site) | BO3: Drone - Infrared Inspection - expenses not included (per site) | BP3: MPE Survey RF Emissions (per site) | BR3: Lease review (per site) | BS3: Review work orders and related purchase orders - (1-4 hour per work order) | BT3: Preparation of purchase or lease agreement (3-5 hours per agreement) | BU3: Onsite-Knowledge Transfer (per week) | BV3: Network Operations - to provide on-site support during and after turn-over – internal labor (per person/per year) | BX3: Mount Analysis - size of tower, complexity of loading scenarios (per site) | BY3: Fully Executed Amendment (per site) | BZ3: SCF Creation / WO for new sites up to 12 carriers (per site) | CA3: Remove 3 RRH/RRU, 3 Antenna and 3 cabling | CB3: Rip & Replace - Up to (6) Antenna Replacement (Install/Swap up to (6) new antennas, with associated jumpers, plumbing/re-plumbing etc.) | CC3: Rip & Replace - Up to (6) Antenna Replacement (Install/Swap up to (6) new antennas, with associated jumpers, plumbing/re-plumbing etc.) | CF3: Foundation Drawings/Inspection (per site) | CG3: Pre-Construction Site Walk - distance to site, size of tower | CH3: PIM Test and Remediate* 13 to 24 Paths | CJ3: Mobilization 251-500 Miles (2-4 Member Crew) | CK3: Max lift 3,200 lbs - 6 hr day rate + hourly | CL3: Bucket Truck (day rate) - dependent on location | CM3: Cloud - Virtual EPC (SAE-GW, Firewall, Carrier Grade NAT, eCGF, MME, PCRF, up to 50k subscribers) | CN3: Deployment - Cloud Computing – (per network) | CO3: Due diligence review of modifications/upgrades for compliance with FCC NEPA rules, including Section 106 Review, and FAA and ASR rules (3-5 hours per site) | CP3: Onsite Sr. Optical Engineer Support (40 hours) | CQ3: NAIC Integration Add-on for UPS, Router, Switch, Server, Appliance, Storage Up to 9RU per Device (10 - 20 devices) | CR3: IoT (Interoperability testing) for RAN & Core compatibility (per network) | CS3: Due Diligence Review for compliance with FCC NEPA and Section 106 rules for collocation - (3-5 hours per site) | CT3: Legal review of Environmental Consultant Contracts and SOWs for Phase I Environmental Review - (1-3 hours per contract) | CU3: Zoning drawing (per site) | CV3: New facilities - (1-2 hours) | CW3: Decommission - Up to (3) antennas (6) runs of coax, mounts and miscellaneous hardware from tower top to inside the shelter to QWS | CY3: Modify facilities - per call sign | CZ3: Application for Special Permission Filing (request for waiver of any rule in Part 61) | DA3: Each Additional State | DB3: Security Guard - Hourly Rate | DD3: Logistics and Material Management & Warehousing (per site) | DF3: Single site verification drive testing (per site) | DG3: Accuracy Testing (50 meter x/y) (Cost per Test Point, Average about 10 test points per County) | DH3: Legal review of customer notices & communications; public relations (2-4 hours)
C4: Small Business/SOHO - Distribution Node to Multiple End-User (per node) | E4: LAN MDUs (Local Area Network Multi-Dwelling Units), Large, includes subscription | F4: SAS Integration Costs (per Radio) | J4: Fiber - FTTP (Fiber To The Premises) - per mile, aerial lashed, rural - to urban | K4: Large Cell Site Router capable of L2/Ethernet and IP/MPLS with a mix of 1GE (24 or fewer), 10GE (24 or fewer), and 100GE interfaces (4 or fewer) | L4: Switches - Large business and campus networks, cloud grade | M4: GPON/XGS OLT - Outside Plant | O4: Edge Aggregation - for 32 Cell Sites | P4: Network security equipment - large network | R4: Microwave Radio pair (Indoor, split-mount, small to medium radio link capacities and capabilities | S4: 28/39 GHz PTMP Microwave Remote Node, includes 2' parabolic antenna | W4: 0.3 to 0.6 meter (1-2 foot, dual polarization) | AA4: Cable breakout interconnect 300', maximum of 12 power conductors & 24 fiber | AB4: Large Networks | AD4: Expansion of 2-port low-mid band radio for 1 sector (additional 5Mhz of (FDD), nominal to large amount of power) | AE4: Expansion of 2,4,8-port low-mid band radio for 1 sector (additional 20Mhz of (TDD), nominal to large amount of power) | AF4: W-CDMA RNC (Radio Network Controller, medium network, <250k subscribers) | AI4: 4T4R CBRS Radio Unit, 4T4R pole mounting bracket, 4T4R 10meter CPRI optical cable | AJ4: LOW - 5G Fully Integrated, EMP Hardened Cellsite with Mobile Edge compute and embedded 5G Core - 600mhz - 6ghz with Fiber Media Gateway | AN4: Macrocell - 5G mmWave (Bundle - RU/RRU, BBU Software, GPS Receiver, DU (Open RAN Distributed Unit), Mechanical Mounting, Cables and Connectors, SFPs) | AP4: B66 or B4(3 sector) One RRU Type | AQ4: RRU - band 12 - Perpetual license, w/ SW; all-inclusive power, features, carriers etc. | AR4: vDU Server | AY4: Relocate CSR to New Cabinet | BA4: 4G/5G-NSA Evolved Packet Core - Large, Distributed, SGW, PGW, MME (greater than 200K subs - redundant solution, per site, includes deployment) | BB4: Cloud - Virtual EPC (SAE-GW, Firewall, Carrier Grade NAT, eCGF, MME, PCRF, Large Network), includes Design, Installation, Commissioning, Integration Services | BC4: IMS and RAN Element Management System, Large EMS with Premium Licensing, includes hardware (>250 subs), includes Design, Installation, Commissioning, Integration Services | BE4: NFV Server | BF4: OSS/BSS Design - Network Testing & Management (based on 1 million subscribers) | BG4: Orchestration Yearly License Costs & Fees (based on 1 million subscribers) | BK4: Data (Ran CORE) | BL4: 4G Communications License - Perpetual - per Subscriber | BM4: Utility Coordination | BO4: Drone - Additional field work - day rate - expenses not included | BP4: Modeling, Site Design, Performance Troubleshooting, Internal Team Optimization (per site) | BR4: Attend Scoping Meeting/Coordinate with RF (per site) | BS4: Project Management (per person per month) | BT4: Preparation and submission of any required FCC filings for permission (2-4 hours) | BU4: Subscription (per person 5-11 plus flat fee) | BX4: Tower/Mount Mapping (per tower) | BY4: Fully Executed Amendment - Non-MLA (per site) | BZ4: Engineering Services (RAN) (per site) | CA4: Remove BBU | CB4: Rip & Replace - Up to (3) Radios (RRH/RRU) Replacement (Install/Swap up to (3) new radios, with associated jumpers, plumbing/re-plumbing accordingly etc. No new antennas or hybrid) | CC4: Rip & Replace - Up to (3) Radios (RRH/RRU) Replacement (Install/Swap up to (3) new radios, with associated jumpers, plumbing/re-plumbing accordingly etc. No new antennas or hybrid) | CF4: Foundation Install <200' (Monopole/SS) | CG4: Parallel/New 200A Service | CH4: PIM Test and Remediate* 25 to 36 Paths | CJ4: Mobilization Greater than 500 Miles (2-4 Member Crew) | CK4: Mobilization/demobilization is priced by the hourly rate for each helicopter - 6 hours/each | CL4: Manlift or Boomlift 45-135' (day rate) - dependent on location | CM4: Cloud - Virtual EPC (SAE-GW, Firewall, Carrier Grade NAT, eCGF, MME, PCRF, >200k subscribers) | CN4: Deployment - Optical Transmission – (per network) | CO4: Depending on spectrum licenses, preparation and submission of any required FCC applications for modifications for facility upgrades, equipment changes, and preparation of any FAA applications and ASR applications for structure modifications or lighting changes - (2-4 hours) | CP4: Remote Sr Optical Engineer Support (40 hours) | CQ4: Optical 2-Slot to 16 Slot Level 1 Staging | CR4: IoT (Interoperability testing) for RAN compatibility (per network) | CS4: Legal Review for Environmental Consultant SOWs for NEPA and Section 106. and all work related - (2-3 hours per site) | CT4: Preparation of any required FAA and ASR filings - (5-8 hours per application) | CU4: Zoning Approval (per site) | CV4: Modify facilities - (4-6 hours) | CW4: Decommission - Up to (9) antennas (12) runs of coax, mounts and miscellaneous hardware from tower top to inside the shelter to QWS | CY4: Extension of Construction Authority (Microwave) - per call sign | CZ4: Waiver of Part 69 Tariff Rules (per request) | DA4: Petition for Waiver (per petition) | DD4: Kitting (per site) (receive products from multiple OEMs and suppliers and integrate the related items into a single package, pallet or other format as desired) | DF4: Troubleshooting (per hour/per man) | DG4: PSAP or County level KPI Accuracy Results Reports (Per Report)
C5: Large Business/Enterprise - Distribution Node to Multiple End-User (per node) | K5: CellSite Router (1 Gig Port config L2 switch - 10 Gig Port config MPLS (Multiprotocol Label Switching) L3 router) | L5: Switches - small enterprise and service provider, cloud grade | R5: Microwave Radio pair (Indoor, split-mount, medium to large radio link capacities and capabilities | S5: 28/39 GHz PTMP Microwave Remote Node, includes 3' parabolic antenna | AA5: Cable breakout interconnect 400', maximum of 12 power conductors & 24 fiber | AD5: Expansion of 4-port low-mid band radio for 1 sector (additional 5Mhz of (FDD), nominal to large amount of power) | AF5: W-CDMA RNC (Radio Network Controller, large network, <500k subscribers) | AI5: 64T64R CBRS Radio Unit, 64T64R pole mounting bracket, 64T64R CPRI Optical module, 10 meter CPRI cable | AJ5: Solar Cell Site Power Solution (<24 hour solution) - Green Power Solution | AP5: B2 or B25 (3 sector) One RRU type | AQ5: RRU - band 66 - Perpetual license, w/ SW; all-inclusive power, features, carriers etc. | AY5: Install batteries and rectifiers | BA5: 4G/5G-NSA Evolved Packet Core - Large, Distributed, SGW, PGW, MME (greater than 200K subs - distributed, geo-redundant solution, per site, includes deployment) | BB5: Cloud - Virtual Stand Alone IMS (CTAS, IMS Core, MRF, AGW, A-SBC, HSS, ePDG, I-SBC, DRA, PCRF, 4G EPC, E-CSCF, LI interface, SMSC, MMSC, VM) | BC5: Packet Core Element Management System, Packet Core EMS (50K subs vs 250K subs), includes hardware (50K to 100K subs), includes Design, Installation, Commissioning, Integration Services | BE5: Aggregation Router (range is Small 1G ports L2 Switch - Medium 10G/25G ports MPLS L3 Router) | BF5: OSS/BSS Yearly License Costs & Fees (based on 1 million subscribers) | BK5: Network Management SW | BL5: 5G SA/NSA IOT License - Perpetual - per Subscriber | BM5: Participation in FCC Rulemaking - (8-15 hours per filing) | BO5: Site survey - (from ground) distance to site/complexity of site (including ground measurement) (per site) | BP5: RF Model Tuning - Propagation Model per morphology (Sub Urban,Urban,Dense Urban or Rural) | BR5: Landlord consent and notice to Landlord (per site) | BS5: Construction Management (per person per month) | BU5: Optical Training Service - 3 to 4 day instruction | BX5: Review Contracts and Statements of Work - (2-3 hours per contract) | BY5: Legal review of tower leases and support of negotiations - (8-10 hours per lease) | BZ5: Engineering Services (Core) (per core) | CA5: Remove BBU and replace with new BBU | CB5: Rip & Replace - Up to (6) Radios (RRH/RRU) Replacement (Install/Swap up to (6) new radios, with associated jumpers, plumbing/re-plumbing accordingly etc. No new antennas or hybrid) | CC5: Rip & Replace - Up to (6) Radios (RRH/RRU) Replacement (Install/Swap up to (6) new radios, with associated jumpers, plumbing/re-plumbing accordingly etc. No new antennas or hybrid) | CF5: Foundation Install <200' (Monopole/SS) - Batch Plant | CG5: Upgrade to 200A Service | CH5: Sweep Test (per line) | CJ5: Mobilization Ground Crew - (2-4 Member Crew) - day rate | CL5: Manlift or Boomlift 45-135' (week rate) - dependent on location | CM5: Cloud - Virtual IMS (CTAS, IMS Core, MRF, AGW, A-SBC, HSS, ePDG, I-SBC, DRA, PCRF, 4G EPC, E-CSCF, LI interface, SMSC, MMSC, VM), up to 10k subscribers | CN5: Deployment - Data Transmission – (per network) | CO5: Preparation and submission of any required post-construction filings including notifications to FAA and FCC of completion of construction, and any required application filings for spectrum applications or licenses - (2-4 hours) | CR5: Contract review - (2-4 hours) | CS5: Regulatory Management (per site) | CT5: Legal fees for research and preparation and filing for any zoning or local permitting requirements - (3-4 hours per site) | CU5: Attendance at additional zoning hearings | CV5: Requests for Special Temporary Authority - (6-8 hours) | CW5: Decommission - Each additional antenna (including) , associated mount, line and miscellaneous hardware. | CY5: Duplicate License (Microwave) - per call sign | DA5: Part 36 Separation Rules (per request) | DD5: Storage (monthly) | DF5: Pre-Launch Cluster Optimization - Pre and Post Drive Test (Up to 12 Carrier) (per site) | DG5: TXT2911 Rehome/Reset (Per Radio Technology, One Time Fee)
K6: 10G L2/Ethernet only NID/CellSite Router to IP/MPLS NID/CellSite Router | L6: Switches - medium enterprise and service provider, cloud grade | R6: Microwave Radio pair, 2+0, 80MHz Channel, 1.4 Gbps (11GHz or 18GHz) | AA6: "Raycap" Over-voltage Protection / Fiber Management – each | AJ6: Solar Cell Site Power Solution (24 to 48 hour solution) - Green Power Solution | AP6: B48 One RRU Type | AQ6: RRU - band 25 - Perpetual license, w/ SW; all-inclusive power, features, carriers etc. | AY6: Install Outdoor Mounting Rack H-Frame | BA6: HSS Subscriber Data - Small, HSS (up to 50K subs, includes deployment) | BC6: Design, Installation, Commissioning, Integration Services, Packet Core EMS Add-ons | BE6: Core Routers, small networks | BK6: SDN-enabled management and control software (per device, 1yr to 3yr sub) | BL6: 5G SA/NSA Connectivity License - Perpetual - per Subscriber | BM6: Consultation with Counsel on Finalized Rules & Regulations - (3-10 hours) | BP6: Drone - Performance Mapping (RF Measurements) (per site) | BR6: Site Plan - (lease exhibit) (per site) | BS6: NOC Staff Augments - (per person per month) | BU6: Open vRAN Training - 3 to 4 day | BZ6: Engineering Services (IP Network) (per site) | CA6: Antenna Install (with material) | CB6: Rip & Replace - Up to (6) New Radios, (3) New Antennas (Install/Swap up to (6) new radios, (3) new antennas with associated jumpers, plumbing/re-plumbing etc. No new hybrid) | CC6: Rip & Replace - Up to (6) New Radios, (3) New Antennas (Install/Swap up to (6) new radios, (3) new antennas with associated jumpers, plumbing/re-plumbing etc. No new hybrid) | CF6: Demo Existing Tower | CG6: Conduit and Fiber from Cabinet to H Frame | CJ6: Mobilization Tower (2-4 Member Crew) - day rate | CL6: Manlift or Boomlift 45-135' (monthly rate) - dependent on location | CM6: Cloud - Virtual IMS (CTAS, IMS Core, MRF, AGW, A-SBC, HSS, ePDG, I-SBC, DRA, PCRF, 4G EPC, E-CSCF, LI interface, SMSC, MMSC, VM), up to 100k subscribers | CN6: Deployment - GPON/XGS EMS – FTTH – (per network) | CT6: Review insurance requirements and OSHA standards for tower climbers - (3-6 hours) | CU6: Complex zoning (including attendance at 2 hearings) | CV6: Rule Waivers - (4-6 hours) | CW6: Decommission - Microwave antenna (including), associated mount, elliptical line and miscellaneous hardware. | CY6: Requests for Special Temporary Authority (Microwave) - Fee Exempt (per link) | DF6: Mobility or FWA (non M-MIMO) Ground services base integration, cut over support, call / data test package for site with shelter (per site) | DG6: VoWiFi Rehome/Reset (Per Radio Technology, One Time Fee)
K7: 100G IP/MPLS Aggregation (non-redundant - redundant controllers) | L7: Switches - large enterprise and service provider, cloud grade | R7: Microwave Radio pair, 4+0, 80 MHz Channel, 2.8 Gbps (11GHz or 18GHz) | AA7: OVP to radio power/fiber jumpers, coax jumpers (each) | AJ7: Generator -based power Cell Site Power Solution - Green Power Solution | AP7: B71/B25 (3 Sector for each RRU) Two RRU Type (dual band per sector) | AQ7: RRU - band 2 - Perpetual license, w/ SW; all-inclusive power, features, carriers etc. | BA7: HSS Subscriber Data - Medium, Per site - HSS (50K subs vs 250K subs, includes deployment) | BC7: Design, Installation, Commissioning, Integration Services IMS/EMS Add-Ons | BE7: Core Routers, medium networks | BK7: RAN Element Management System (Small EMS with Basic Licensing - Medium EMS with Premium Licensing) | BL7: 5G SA/NSA Communications License - Perpetual - per Subscriber | BR7: Co-location application (per site) | BS7: Transition Planning for Cutover - complexity of equipment changes (per site) | BZ7: Engineering Services (Microwave Backhaul) (per link) | CA7: Radio Install - each radio - height of radios on tower; # RF jumper cables per radio/antenna | CB7: Rip & Replace - Up to (9) New Radios, (3) New Antennas (Install/Swap up to (9) new radios, (3) new antennas with associated jumpers, plumbing/re-plumbing etc. No new hybrid) | CC7: Rip & Replace - Up to (9) New Radios, (3) New Antennas (Install/Swap up to (9) new radios, (3) new antennas with associated jumpers, plumbing/re-plumbing etc. No new hybrid) | CF7: Minor Tower reinforcement/modifications - size of tower, extent of reinforcing | CG7: Hand Trenching from Backhaul Cabinet to New Cabinet (25') | CJ7: Troubleshooting – RRU Replacement during the maintenance window on site per hour (Up to four-man crew) | CL7: Gin Pole Cost (per job) | CM7: Cloud - Virtual IMS (CTAS, IMS Core, MRF, AGW, A-SBC, HSS, ePDG, I-SBC, DRA, PCRF, 4G EPC, E-CSCF, LI interface, SMSC, MMSC, VM), >200k subscribers | CN7: RAN EMS Deployment – (per network) | CT7: Spectrum acquisition agreement - (4-8 hours per contract) | CU7: Completion and submittal of permit (building or electrical) (per site) | CV7: Spectrum Leasing (De Facto) - (2-4 hours) | CW7: Decommission In Shelter - 2nd eNodeB Rack, diplexers w/mount, RF coax jumpers: | CY7: Rule Waivers/Spectrum Leasing for new or sublease, Transfer of Control of a Lessee or a Sublessee or Extend Term of a Lease or Sublease (Microwave/Broadband 2.5GHz) - per call sign -$70 each additional | DF7: Cluster Optimization (Drive based) for FWA or Mobility (Per Technology (LTE or UMTS)), 10-Site Cluster) | DG7: Mobilization fee (Charge each time tester is moved to a new state or carrier market area)
R8: Microwave Radio pair, 2+0, 50MHz Channel, 850 Mbps (23 GHz) | AJ8: 5G RAN & Core Consulting – per hour | AP8: B71/B12/B41 (3 Sector for each RRU) Three RRU Type (tri-band per sector) | AQ8: RRU - band 5 - Perpetual license, w/ SW; all-inclusive power, features, carriers etc. | BA8: HSS Subscriber Data - Medium, Per site - HSS (250K subs vs 500K subs, includes deployment) | BE8: Core Routers, large networks | BK8: Core Element Management System (10K subscriber core - 250K subscribe core) | BL8: 4G+5G NSA IOT License - Perpetual - per Subscriber | BS8: Transition Planning for Cutover: Optical Network Subscriber and network migration services up to 16 nodes additional for add-on's | BZ8: Engineering Services (Microwave Backhaul) FCC PCN Coordination) (per link) | CA8: Install new Power Trunk | CB8: Rip & Replace - Up to (12) New Radios, (6) New Antennas (Install/Swap up to (12) new radios, (6) new antennas with associated jumpers, plumbing/re-plumbing etc. No new hybrid) | CC8: Rip & Replace - Up to (12) New Radios, (6) New Antennas (Install/Swap up to (12) new radios, (6) new antennas with associated jumpers, plumbing/re-plumbing etc. No new hybrid) | CF8: Build new <200' monopole (Erection only including crane) | CG8: Trenching and Cabling from New Cabinet to Power Panel (100’ – includes materials) | CJ8: Troubleshooting – RRU Replacement during the non-maintenance window on site per hour (Up to four-man crew) | CL8: Matting for Temporary Roads - Grid Mats Cost per 100ft | CT8: Review contracts for proper insurance, indemnification, liability and risk management - (2-4 hours) | CU8: Permit Pickup (per site) | CV8: FCC legal review and application filings - Fixed Wireless Link Replacement (2-4 hours) | CW8: Decommission - existing hybrid cable | CY8: Major modification for spectrum leasing (Microwave/Broadband 2.5GHz) - per lease ID | DF8: Single site verification stationary testing for FWA (per site) | DG8: Stand-by Fee (Per day)
R9: Microwave Radio pair, 4+0, 50 MHz Channel, 1.7 Gbps (23 GHz) | AQ9: RRU - band 4 - Perpetual license, w/ SW; all-inclusive power, features, carriers etc. | BA9: Mobile Position System (MPS) - Medium (60K subs) - Large (500Ksubs) | BE9: Core Switches, small networks | BK9: Per Call Measurement Data Server (PCMD) | BL9: 4G+5G NSA Connectivity License - Perpetual - per Subscriber | BS9: Legal review of customer communications related liability, indemnification and risk management in associated contracts and SOW - (6-8 hours) | BZ9: Negotiation & Review of RF engineering, AM Detuning, Interference or Intermodulation analysis, RF Emissions Study, and RF Exposure Measurements contracts - (2-3 hours per contract) | CA9: Install new Fiber Trunk | CB9: Install/Swap up to (18) new radios, (9) new antennas with associated jumpers, plumbing/re-plumbing accordingly etc. No new hybrid) | CF9: Build new <200' monopole - Materials | CG9: Re-cable MW Dish to New Cabinet (100’ – includes materials) | CJ9: General Troubleshooting – Up to 4 hours of onsite troubleshooting (Up to four men crew) | CL9: Snow Removal Equipment – per vehicle | CT9: Review contracts for disposal to ensure compliance with law and liability related issues - (2-4 hours per contract) | CU9: Legal fees for research and preparation and filing for any zoning or local permitting requirements (per site) | CW9: Decommission - remove waveguide, fiber, CAT5/6, coaxial cable up to 1 5/8" (per foot) | CY9: New, Modification or Major Modification (Broadband 2.5GHz) - per call sign | DG9: Hosted SMLC Location Server License and Set-up- One Time Fee (“OTF”) (per project)
R10: Microwave Radio pair, 1+0, 2000 MHz Channel, 10 Gbps (80 GHz) | AQ10: RRU - band 48 - Perpetual license, w/ SW; all-inclusive power, features, carriers etc. SW price is per RRU for B48 | BA10: PCRF Server - Small, PCRF (up to 50K subs) | BE10: Core Switches, medium networks | BK10: Software Licenses (per radio) to include: M2M, Cat-M1, Narrowband IoT, and similar items | BL10: 4G+5G NSA Communications License - Perpetual - per Subscriber | BZ10: Open RAN deployment services, CU/DU deployment instantiation support, per man/hour | CA10: Install Hybrid Cable (without Material) | CF10: Build new <300' SST (Erection only including crane) | CG10: Install Ice Bridge (~30') | CJ10: General Troubleshooting – Up to 8 hours of onsite troubleshooting (Up to four men crew) | CL10: Prime Mover or Similar for Towing - per vehicle | CT10: Review of applicable tax code (2-4 hours per inquiry) | CU10: Jurisdictional Fees (per site) | CW10: Decommission - one outdoor cabinet | CY10: Certification of Completion of Construction (Broadband 2.5GHz) - per call sign | DG10: Hosted SMLC Location Server Monthly Recurring Fee per Cell Site (“MRF”)
R11: Microwave L2 Processing Shelf | BA11: PCRF Server - Small Design, Installation, Commissioning, Integration, Migration Services | BE11: Core Switches, large networks | BL11: LTE Software License, perpetual license, technology LTE TDD/FDD, per cell/carrier | BZ11: Tier 2 & Tier 3 Operational Support, per man/hour | CA11: Fiber Inspection, Cleaning and Light Source & Power Meter Testing * Post Installation (per 24 fibers) | CF11: Build new <300' SST - Materials | CG11: Cement Pad Install | CJ11: Troubleshooting – Single Antenna replacement during the maintenance window | CL11: Straight Truck or Similar for Counterweight - per vehicle | CU11: Phase 1 ESA (per site) | CW11: Decommission - Indoor 19" Rack with existing legacy BBU | CY11: Extension of Construction Authority (Broadband 2.5 GHz) - per call sign | DG11: Project Management Set-up - One Time Fee (“OTF”) (per site dependent on complexity)
BA12: 3G HLR added to HSS - Small, HLR (up to 50K subs, includes deployment) | BL12: 5G NR (new radio) Software License, perpetual license, technology 5G NR TDD/FDD, per cell/carrier | CA12: Raycap Install/Upgrade | CF12: Major Tower reinforcement/modifications - size of tower; tower design; tower foundations; guy wires | CG12: Install BBU (rack or cabinet) | CJ12: Troubleshooting – Antenna replacement during the non-maintenance window | CL12: Forklift of Similar for Component Transport - per vehicle | CU12: NEPA/SHPO Checklist only (per site) | CW12: Decommission - Indoor 19" Rack with up two battery strings | CY12: Special Temporary Authority (Broadband 2.5 GHz) - per call sign or Market/Channel Block | DG12: LPM Reporting Tool reset up One Time Fee (“OTF”) Per Radio Technology
BA13: 3G HLR added to HSS - Medium, Per site - HLR (50K subs vs 250K subs, includes deployment) | BL13: 5G NR (new radio) mMIMO (massive MIMO) Software License, perpetual license, technology 5G NR TDD/FDD, per cell/carrier | CA13: Install Sector Frame | CF13: Serous Tower reinforcement/modifications - tower foundation mods; tower "wrap" | CG13: Installation of new 19" rack in existing shelter | CJ13: Maintenance window work per night/per 3-man crew (per night) | CU13: Photo Simulation (per site) | CW13: Decommission - Single antenna | CY13: New, Additional Facility, Major Modification (Cellular Radiotelephone) - per call sign
BA14: 3G HLR added to HSS - Medium, Per site - HLR (250K subs vs 500K subs, includes deployment) | BL14: LTE Open RAN eNB SW Fee, cost of (1) perpetual license per cell site, technology LTE TDD/FDD | CA14: Installation of outdoor cabinet with one battery string | CF14: Carrier Relocation BOM (per site) | CG14: GPS install | CJ14: Microwave Pathing - During Construction (per link) | CU14: Negotiation & Review of RF engineering contracts – (2-4 hours per contract) | CY14: Minor Modification (Cellular Radiotelephone) - per call sign
BA15: Design, Installation, Commissioning, Integration, Migration Services - Medium solution, 3G HLR added to HSS - Medium | BL15: 5G NR Open RAN eNB SW Fee, cost of (1) perpetual license per cell site, technology 5G NR TDD/FDD | CA15: Installation of outdoor battery cabinet with two strings of batteries | CF15: Carrier Relocation Civil Work (per site) | CG15: Install collar mounts (Tri & Quad) V-Booms, (with materials) – (Per Mount) | CJ15: Microwave Pathing - Post Construction (per link) | CY15: Special Temporary Authority (Cellular Radiotelephone) - per request
BA16: AAA Server - Small, AAA (up to 50K subs) | BL16: Open RAN Management System, cost of one perpetual license for 1 cell/carrier, technology LTE/5G NR TDD/FDD | CA16: Installation of indoor cabinet with one battery string | CF16: Carrier Relocation L&A Work (per site) | CG16: Install MOVE platform (with Materials) (Per Mount) – ASK CM, MUCH HIGHER THAN ATN | CJ16: Microwave Commissioning and Integration (per link) | CY16: Spectrum Leasing for new or sublease / Assignment of authorization or Transfer of Control (Full or Partial) / Transfer of Control of a Lessee or a Sublessee, Extend Term of a Lease or Sublease or Major Modification for Spectrum Leasing (Cellular Radio Telephone) - per call sign/lease
BA17: Design, Installation, Commissioning, Integration, Migration Services - Small solution, AAA Server - Small | CA17: Installation of indoor battery cabinet with two strings of batteries | CG17: DC Cable Pull Through Conduit Sizes #16AWG to #2AWG | CJ17: Microwave relocation during construction (per site) | CY17: Minor modification for spectrum leasing (Cellular Radiotelephone) - per lease ID
BA18: AAA Server - Medium, Per site - AAA (50K subs vs 250K subs) | CA18: PDU Installation (tower top, providing PDU) | CG18: Re-use/Re-working existing hybrid (Cabling to new equipment and baseband along with required testing) – up to 12 fibers | CY18: Domestic 214 Application -$1,155.00
BA19: AAA Server - Medium, Per site - AAA (250K subs vs 500K subs) | CA19: DC power plant Install | CG19: Install Hybrid Cable (with Material)
BA20: Design, Installation, Commissioning, Integration, Migration Services - Medium solution, AAA Server - Medium | CG20: Upgrade Generator (modification reports, labor and modification)
BA21: Design, Installation, Commissioning, Integration Services, Mobile Switching Center | CG21: Site Inspection - distance to site/complexity of site
BA22: IMS Core, Per site - CSCF, TAS, A-SBC, ES, LIG, MRF, DRA/DEA, DNS, ENUM (50K - 250K subs) | CG22: Environmental Work (per site)
BA23: IMS Core, Per site - CSCF, TAS, A-SBC, ES, LIG, MRF, DRA/DEA, DNS, ENUM (250K - 500K subs) | CG23: Solar Design (per site)
BA24: 3G Packet Core addition to 4G EPC - Small to Medium, SGSN, GGSN (up to 500K subs, includes deployment) | CG24: 25-50 Amp Solar Upgrade (Install and Material) (per site)
BA25: WiFi Packet Data Gateway - ePDG (Small - 10K subs vs 50K subs, includes deployment) | CG25: 75-100 Amp Solar Upgrade (Install and Material) (per site)
BA26: WiFi Packet Data Gateway - ePDG (Medium - 50K subs vs 250K subs, includes deployment) | CG26: Commissioning and Integration of single technology – per site
CG27: Closeout Package – Microwave (per link)
CG28: Closeout Package – (per site)

Sheet Catalog Item - Avg Price (hidden)
A1: Optical line terminal equipment (OLT) | B1: Access WDM & OTN equipment, Small network, includes subscription (per node) | C1: Access WDM & OTN equipment, Medium to Large network, includes subscription (per node) | D1: Customer ONT - indoor | E1: Customer ONT - outdoor | F1: Small Business/SOHO - Distribution Node to Multiple End-User (per node) | G1: Large Business/Enterprise - Distribution Node to Multiple End-User (per node) | H1: Ethernet Service Access Node (ESAN) (includes outdoor cabinet & install) | I1: LAN MDUs (Local Area Network Multi-Dwelling Units), Small, includes subscription | J1: LAN MDUs (Local Area Network Multi-Dwelling Units), Medium, includes subscription | K1: LAN MDUs (Local Area Network Multi-Dwelling Units), Large, includes subscription | L1: CBRS/B48 Category 15 15-19 dBi Gain Outdoor Unit | M1: CBRS/B48 Category 15 High Gain Indoor Unit | N1: SAS Integration Costs (per Radio) | O1: Legal review of customer notices & communications; public relations - (2-4 hours) | P1: Cable coaxial media converters | Q1: CMTS (per node) | R1: WLAN - small | S1: WLAN - medium to large network | T1: Site Cabinets - Optical Network Units (ONU) | U1: Fiber - FTTP (Fiber To The Premises) - per mile, trenched & buried, rural, flat, rocky - to urban | V1: Fiber - FTTP (Fiber To The Premises) - per mile, aerial lashed, rural - to urban | W1: Small Cell Site Router capable of L2/Ethernet and IP/MPLS with a mix of 1GE (8 or fewer) and 10GE interfaces (2 or fewer) | X1: Medium Cell Site Router capable of L2/Ethernet and IP/MPLS with a mix of 1GE (20 or fewer) and 10GE interfaces (8 or fewer) | Y1: Large Cell Site Router capable of L2/Ethernet and IP/MPLS with a mix of 1GE (24 or fewer), 10GE (24 or fewer), and 100GE interfaces (4 or fewer) | Z1: CellSite Router (1 Gig Port config L2 switch - 10 Gig Port config MPLS (Multiprotocol Label Switching) L3 router) | AA1: 10G L2/Ethernet only NID/CellSite Router to IP/MPLS NID/CellSite Router | AB1: 100G IP/MPLS Aggregation (non-redundant - redundant controllers) | AC1: Switches - small business and campus networks, cloud grade | AD1: Switches - medium business and campus networks, cloud grade | AE1: Switches - Large business and campus networks, cloud grade | AF1: Switches - small enterprise and service provider, cloud grade | AG1: Switches - medium enterprise and service provider, cloud grade | AH1: Switches - large enterprise and service provider, cloud grade | AI1: GPON/XGS Element Management System (10k subs) | AJ1: GPON/XGS OLT | AK1: GPON/XGS OLT - Outside Plant | AL1: VDSL - ISP vs. OSP (Inside Plant vs. Outside Plant) | AM1: Edge Aggregation - for 8 Cell Sites | AN1: Edge Aggregation - for 16 Cell Sites | AO1: Edge Aggregation - for 32 Cell Sites | AP1: Network security equipment - small network | AQ1: Network security equipment - medium network | AR1: Network security equipment - large network | AS1: WDM & OTN equipment, Small network, includes subscription (per node) | AT1: WDM & OTN equipment, Medium to Large network, includes subscription (per node) | AU1: Microwave Radio pair (5.8 GHz 2+0 500 Mbps basic hop - 11 GHz 4+0 2.8 Gbps hop with switching) | AV1: Microwave Radio pair (Indoor, split-mount, small varying radio link capacities and capabilities | AW1: Microwave Radio pair (Indoor, split-mount, small to medium radio link capacities and capabilities | AX1: Microwave Radio pair (Indoor, split-mount, medium to large radio link capacities and capabilities | AY1: Microwave Radio pair, 2+0, 80MHz Channel, 1.4 Gbps (11GHz or 18GHz) | AZ1: Microwave Radio pair, 4+0, 80 MHz Channel, 2.8 Gbps (11GHz or 18GHz) | BA1: Microwave Radio pair, 2+0, 50MHz Channel, 850 Mbps (23 GHz) | BB1: Microwave Radio pair, 4+0, 50 MHz Channel, 1.7 Gbps (23 GHz) | BC1: Microwave Radio pair, 1+0, 2000 MHz Channel, 10 Gbps (80 GHz) | BD1: Microwave L2 Processing Shelf | BE1: 28/39 GHz PTMP Microwave Hub Node (access point), includes 90° sector antenna (LMDS A2/A3 or B Band) | BF1: 28/39 GHz PTMP Microwave Remote Node, includes 1' parabolic antenna | BG1: 28/39 GHz PTMP Microwave Remote Node, includes 2' parabolic antenna | BH1: 28/39 GHz PTMP Microwave Remote Node, includes 3' parabolic antenna | BI1: 0.3 - 1.2 meter (1 - 4 foot) | BJ1: 1.8 - 3.0 meter (6 - 10 foot) | BK1: 0.3 - 1.2 meter (1 - 4 foot) | BL1: 1.8 - 3.0 meter (6 - 10 foot) | BM1: 0.3 - 1.2 meter (1 - 4 foot) | BN1: 1.8 - 3.0 meter (6 - 10 foot) | BO1: Flat Panel | BP1: 0.3 to 0.6 meter (1-2 foot, single polarization) | BQ1: 0.3 to 0.6 meter (1-2 foot, dual polarization) | BR1: 2 port - 2T2R through 8 port - 8T8R | BS1: 10 port - 10T10R through 20 port - 20T20R | BT1: 8 port - 8T8R through 20 port - 20T20R | BU1: 2 port - 2T2R through 16 port - 16T16R | BV1: Cable breakout interconnect 100', maximum of 12 power conductors & 24 fiber | BW1: Cable breakout interconnect 200', maximum of 12 power conductors & 24 fiber | BX1: Cable breakout interconnect 300', maximum of 12 power conductors & 24 fiber | BY1: Cable breakout interconnect 400', maximum of 12 power conductors & 24 fiber | BZ1: "Raycap" Over-voltage Protection / Fiber Management – each | CA1: OVP to radio power/fiber jumpers, coax jumpers (each) | CB1: Small Networks | CC1: Medium Networks | CD1: Large Networks | CE1: Bearer - small network | CF1: Bearer - medium to large network | CG1: 2-port capable, low-mid band radio for 1 sector (5Mhz, FDD, LTE or W-CDMA (Wideband Code Division Multiple Access)) | CH1: 4-port capable, low-mid band radio for 1 sector (5Mhz, FDD, LTE or W-CDMA) | CI1: Expansion of 2-port low-mid band radio for 1 sector (additional 5Mhz of (FDD), nominal to large amount of power) | CJ1: Expansion of 4-port low-mid band radio for 1 sector (additional 5Mhz of (FDD), nominal to large amount of power) | CK1: 4-port capable, low-mid band radio for 1 sector (20Mhz, TDD) | CL1: 8-port capable, low-mid band radio for 1 sector (20Mhz, TDD) | CM1: Expansion of 2,4,8-port low-mid band radio for 1 sector (additional 20Mhz of (TDD), nominal to large amount of power) | CN1: Rack Mounted or Outdoor Mounted baseband unit (BBU) | CO1: W-CDMA RNC (Radio Network Controller, small network, <50k subscribers) | CP1: W-CDMA RNC (Radio Network Controller, medium network, <250k subscribers) | CQ1: W-CDMA RNC (Radio Network Controller, large network, <500k subscribers) | CR1: Single sector CBRS 4T4R base station and Baseband Unit - 10/20MHz channel | CS1: Single sector CBRS 64T64R base station and Baseband Unit - 10/20MHz channel | CT1: Single sector CBRS 4T4R base station and Baseband Unit - 40MHz channel | CU1: Single sector CBRS 64T64R base station and Baseband Unit - 40MHz channel | CV1: Single sector CBRS 4T4R base station and Baseband Unit - 60MHz channel | CW1: Single sector CBRS 64T64R base station and Baseband Unit - 60MHz channel | CX1: 4T4R CBRS Radio Unit, 4T4R pole mounting bracket, 4T4R 10meter CPRI optical cable | CY1: 64T64R CBRS Radio Unit, 64T64R pole mounting bracket, 64T64R CPRI Optical module, 10 meter CPRI cable | CZ1: HIGH - 5G Fully Integrated, EMP Hardened Cellsite with Mobile Edge compute and embedded 5G Core - 600mhz - 6ghz; 30ghz and up + Counter UAS Radar & Video Surveillance | DA1: MEDIUM - 5G Fully Integrated, EMP Hardened Cellsite with Mobile Edge compute and embedded 5G Core - 600mhz - 6ghz; 30ghz and up + Diverse Backhaul (Free space Optic and/or MM wave) | DB1: LOW - 5G Fully Integrated, EMP Hardened Cellsite with Mobile Edge compute and embedded 5G Core - 600mhz - 6ghz with Fiber Media Gateway | DC1: Solar Cell Site Power Solution (<24 hour solution) - Green Power Solution | DD1: Solar Cell Site Power Solution (24 to 48 hour solution) - Green Power Solution | DE1: Generator -based power Cell Site Power Solution - Green Power Solution | DF1: 5G RAN & Core Consulting – per hour | DG1: 2T2R-8T8R eNodeB with 3 sectors, single spectrum band of up to 20 MHz/sector. Fixed Wireless features. Range due to Low Power radio (20W) vs High Power radio (up to 320W). Price includes Remote Radio Units (RRU), Base Band Unit (BBU), Ancillaries, Software Features, and Capacity Licensing. Price excludes antennas, tower cabling, tower ancillaries and over voltage protection (OVP) | DH1: mMIMO eNodeB with 3 sectors, single spectrum band of up to 20 MHz/sector. Fixed Wireless features. Range due to Low Power radio (120W) vs High Power radio (up to 240W). Price includes Radio+Antenna, BBU, Ancillaries, Software Features, and Capacity Licensing. Price excludes tower cabling, tower ancillaries and over voltage protection (OVP) | DI1: 2T2R-8T8R eNodeB with 3 sectors, single spectrum band of up to 20 MHz/sector. Mobility features. Range due to Low Power radio (20W) vs High Power radio (up to 320W). Price includes RRHs, BBU, Ancillaries, Software Features, and Capacity Licensing. Price excludes antennas, tower cabling, tower ancillaries and over voltage protection (OVP) | DJ1: mMIMO eNodeB 3 Sector Per Band (64T64R 20 MHz 1 Band - 64T64R 60 MHz 1 Band with Advanced Mobility Features) | DK1: Macrocell 4G 20MHz Carrier (Bundle - Antennas, RU/RRU, BBU Software, GPS Receiver, STU (Subscriber Terminal Unit), RIU (Radio Interface Unit), Mechanical Mounting, Cables and Connectors, SFPs (Small Form-Factor Pluggable)) | DL1: Macrocell - 5G Sub6 100MHz Carrier (Bundle - Antennas, RU/RRU, BBU Software, GPS Receiver, STU, RIU, Mechanical Mounting, Cables and Connectors, SFPs) | DM1: Macrocell - 5G mmWave (Bundle - RU/RRU, BBU Software, GPS Receiver, DU (Open RAN Distributed Unit), Mechanical Mounting, Cables and Connectors, SFPs) | DN1: SAS Integration Costs (per Radio) | DO1: B71 (3 sector site) or B5 (3 sector) One RRU Type | DP1: B41 (3 sector site) One RRU Type | DQ1: B66 or B4(3 sector) One RRU Type | DR1: B2 or B25 (3 sector) One RRU type | DS1: B48 One RRU Type | DT1: B71/B25 (3 Sector for each RRU) Two RRU Type (dual band per sector) | DU1: B71/B12/B41 (3 Sector for each RRU) Three RRU Type (tri-band per sector) | DV1: RRU - band 71 - Perpetual license, w/ SW; all-inclusive power, features, carriers etc. | DW1: RRU - band 41 - Perpetual license, w/ SW; all-inclusive power, features, carriers etc. | DX1: RRU - band 12 - Perpetual license, w/ SW; all-inclusive power, features, carriers etc. | DY1: RRU - band 66 - Perpetual license, w/ SW; all-inclusive power, features, carriers etc. | DZ1: RRU - band 25 - Perpetual license, w/ SW; all-inclusive power, features, carriers etc. | EA1: RRU - band 2 - Perpetual license, w/ SW; all-inclusive power, features, carriers etc. | EB1: RRU - band 5 - Perpetual license, w/ SW; all-inclusive power, features, carriers etc. | EC1: RRU - band 4 - Perpetual license, w/ SW; all-inclusive power, features, carriers etc. | ED1: RRU - band 48 - Perpetual license, w/ SW; all-inclusive power, features, carriers etc. SW price is per RRU for B48 | EE1: Multi-Access Edge Server (indoor) | EF1: Multi-Access Edge Server (outdoor) | EG1: vDU Server | EH1: Edge Computing vCompute NODE | EI1: vCU Server | EJ1: SFP - 10G | EK1: GPS Antenna, Lightning Arrestor, GPS Splitter 1:8, Cable Assembly-Coaxial (35') | EL1: 3G/UMTS RNC (Radio Network Controller) Small - Medium (50 - 1000 nodes) | EM1: 3G/UMTS NodeB HW/SW addition to eNodeB | EN1: Small Cell, LTE B42 B43 B48 integrated antenna eNodeB | EO1: New shelter: Shelter, delivery, crane, labor, pad | EP1: Cabinet, Power Distribution Unit, 4 to 8 Rectifiers, 1 to 2 Battery Strings, optional Heat Exchanger | EQ1: Outdoor Cabinet Install (Provide and Install) | ER1: Relocate CSR to New Cabinet | ES1: Install batteries and rectifiers | ET1: Install Outdoor Mounting Rack H-Frame | EU1: Indoor cabinet (small to large site, optional battery backup included. | EV1: Indoor Power Plants / Rectifiers / Batteries | EW1: 4G/5G-NSA Evolved Packet Core - Small, SGW, PGW, MME (10K subs to 50K subs, includes deployment) | EX1: 4G/5G-NSA Evolved Packet Core - Medium, SGW, PGW, MME (50K subs to 200K subs), cost per site, includes deployment | EY1: 4G/5G-NSA Evolved Packet Core - Large, Distributed, SGW, PGW, MME (greater than 200K subs - redundant solution, per site, includes deployment) | EZ1: 4G/5G-NSA Evolved Packet Core - Large, Distributed, SGW, PGW, MME (greater than 200K subs - distributed, geo-redundant solution, per site, includes deployment) | FA1: HSS Subscriber Data - Small, HSS (up to 50K subs, includes deployment) | FB1: HSS Subscriber Data - Medium, Per site - HSS (50K subs vs 250K subs, includes deployment) | FC1: HSS Subscriber Data - Medium, Per site - HSS (250K subs vs 500K subs, includes deployment) | FD1: Mobile Position System (MPS) - Medium (60K subs) - Large (500Ksubs) | FE1: PCRF Server - Small, PCRF (up to 50K subs) | FF1: PCRF Server - Small Design, Installation, Commissioning, Integration, Migration Services | FG1: 3G HLR added to HSS - Small, HLR (up to 50K subs, includes deployment) | FH1: 3G HLR added to HSS - Medium, Per site - HLR (50K subs vs 250K subs, includes deployment) | FI1: 3G HLR added to HSS - Medium, Per site - HLR (250K subs vs 500K subs, includes deployment) | FJ1: Design, Installation, Commissioning, Integration, Migration Services - Medium solution, 3G HLR added to HSS - Medium | FK1: AAA Server - Small, AAA (up to 50K subs) | FL1: Design, Installation, Commissioning, Integration, Migration Services - Small solution, AAA Server - Small | FM1: AAA Server - Medium, Per site - AAA (50K subs vs 250K subs) | FN1: AAA Server - Medium, Per site - AAA (250K subs vs 500K subs) | FO1: Design, Installation, Commissioning, Integration, Migration Services - Medium solution, AAA Server - Medium | FP1: Design, Installation, Commissioning, Integration Services, Mobile Switching Center | FQ1: IMS Core, Per site - CSCF, TAS, A-SBC, ES, LIG, MRF, DRA/DEA, DNS, ENUM (50K - 250K subs) | FR1: IMS Core, Per site - CSCF, TAS, A-SBC, ES, LIG, MRF, DRA/DEA, DNS, ENUM (250K - 500K subs) | FS1: 3G Packet Core addition to 4G EPC - Small to Medium, SGSN, GGSN (up to 500K subs, includes deployment) | FT1: WiFi Packet Data Gateway - ePDG (Small - 10K subs vs 50K subs, includes deployment) | FU1: WiFi Packet Data Gateway - ePDG (Medium - 50K subs vs 250K subs, includes deployment) | FV1: Cloud - Virtual EPC (SAE-GW, Firewall, Carrier Grade NAT, eCGF, MME, PCRF, Small Network), includes Design, Installation, Commissioning, Integration Services | FW1: Cloud - Virtual EPC (SAE-GW, Firewall, Carrier Grade NAT, eCGF, MME, PCRF, Medium Network), includes Design, Installation, Commissioning, Integration Services | FX1: Cloud - Virtual EPC (SAE-GW, Firewall, Carrier Grade NAT, eCGF, MME, PCRF, Large Network), includes Design, Installation, Commissioning, Integration Services | FY1: Cloud - Virtual Stand Alone IMS (CTAS, IMS Core, MRF, AGW, A-SBC, HSS, ePDG, I-SBC, DRA, PCRF, 4G EPC, E-CSCF, LI interface, SMSC, MMSC, VM) | FZ1: IMS and RAN Element Management System, Compact EMS with Basic Licensing, includes hardware (10K to 50K subs), includes Design, Installation, Commissioning, Integration Services | GA1: IMS and RAN Element Management System, Medium EMS with Basic Licensing, includes hardware (50K to 100K subs), includes Design, Installation, Commissioning, Integration Services | GB1: IMS and RAN Element Management System, Large EMS with Premium Licensing, includes hardware (>250 subs), includes Design, Installation, Commissioning, Integration Services | GC1: Packet Core Element Management System, Packet Core EMS (50K subs vs 250K subs), includes hardware (50K to 100K subs), includes Design, Installation, Commissioning, Integration Services | GD1: Design, Installation, Commissioning, Integration Services, Packet Core EMS Add-ons | GE1: Design, Installation, Commissioning, Integration Services IMS/EMS Add-Ons | GF1: Core Equipment for WDM & OTN (per node) | GG1: RGS Server | GH1: RGS-E Server | GI1: NFV Server | GJ1: Aggregation Router (range is Small 1G ports L2 Switch - Medium 10G/25G ports MPLS L3 Router) | GK1: Core Routers, small networks | GL1: Core Routers, medium networks | GM1: Core Routers, large networks | GN1: Core Switches, small networks | GO1: Core Switches, medium networks | GP1: Core Switches, large networks | GQ1: OSS/BSS Design - Process Automation & Network Roll-out (based on 1 million subscribers) | GR1: OSS/BSS Design - Network & Service Assurance (based on 1 million subscribers) | GS1: OSS/BSS Design - Network Testing & Management (based on 1 million subscribers) | GT1: OSS/BSS Yearly License Costs & Fees (based on 1 million subscribers) | GU1: Orchestration Design - Service Design & Creation (based on 1 million subscribers) | GV1: Orchestration Design - Universal Cloud Orchestration (based on 1 million subscribers) | GW1: Orchestration Yearly License Costs & Fees (based on 1 million subscribers) | GX1: Cloud Computing | GY1: Small to Medium Network | GZ1: Medium to Large Network | HA1: Small to Medium Network | HB1: Medium to Large Network | HC1: Active Ethernet (AE) functionality for provisioning and alarming | HD1: Voice Core | HE1: Data (Ran CORE) | HF1: Network Management SW | HG1: SDN-enabled management and control software (per device, 1yr to 3yr sub) | HH1: RAN Element Management System (Small EMS with Basic Licensing - Medium EMS with Premium Licensing) | HI1: Core Element Management System (10K subscriber core - 250K subscribe core) | HJ1: Per Call Measurement Data Server (PCMD) | HK1: Software Licenses (per radio) to include: M2M, Cat-M1, Narrowband IoT, and similar items | HL1: 4G IOT License - Perpetual - per Subscriber | HM1: 4G Connectivity License - Perpetual - per Subscriber | HN1: 4G Communications License - Perpetual - per Subscriber | HO1: 5G SA/NSA IOT License - Perpetual - per Subscriber | HP1: 5G SA/NSA Connectivity License - Perpetual - per Subscriber | HQ1: 5G SA/NSA Communications License - Perpetual - per Subscriber | HR1: 4G+5G NSA IOT License - Perpetual - per Subscriber | HS1: 4G+5G NSA Connectivity License - Perpetual - per Subscriber | HT1: 4G+5G NSA Communications License - Perpetual - per Subscriber | HU1: LTE Software License, perpetual license, technology LTE TDD/FDD, per cell/carrier | HV1: 5G NR (new radio) Software License, perpetual license, technology 5G NR TDD/FDD, per cell/carrier | HW1: 5G NR (new radio) mMIMO (massive MIMO) Software License, perpetual license, technology 5G NR TDD/FDD, per cell/carrier | HX1: LTE Open RAN eNB SW Fee, cost of (1) perpetual license per cell site, technology LTE TDD/FDD | HY1: 5G NR Open RAN eNB SW Fee, cost of (1) perpetual license per cell site, technology 5G NR TDD/FDD | HZ1: Open RAN Management System, cost of one perpetual license for 1 cell/carrier, technology LTE/5G NR TDD/FDD | IA1: NTP (Notice to Proceed) Package (per site) | IB1: A&E Walk (per site) | IC1: Utility Coordination | ID1: Participation in FCC Rulemaking - (8-15 hours per filing) | IE1: Consultation with Counsel on Finalized Rules & Regulations - (3-10 hours) | IF1: Existing Colocation (per site, flat fee) – (Low) without A&E, permitting and Legal; (High) full scope | IG1: Drone - Visual Inspection (per site) | IH1: Drone - Infrared Inspection - expenses not included (per site) | II1: Drone - Additional field work - day rate - expenses not included | IJ1: Site survey - (from ground) distance to site/complexity of site (including ground measurement) (per site) | IK1: Construction Drawings (per site) | IL1: MPE Survey RF Emissions (per site) | IM1: Modeling, Site Design, Performance Troubleshooting, Internal Team Optimization (per site) | IN1: RF Model Tuning - Propagation Model per morphology (Sub Urban,Urban,Dense Urban or Rural) | IO1: Drone - Performance Mapping (RF Measurements) (per site) | IP1: Cost of temporary site (COW) during tower replacement or modification | IQ1: Negotiation of co-location contracts/leases (2-4 hours per contract) | IR1: Lease review (per site) | IS1: Attend Scoping Meeting/Coordinate with RF (per site) | IT1: Landlord consent and notice to Landlord (per site) | IU1: Site Plan - (lease exhibit) (per site) | IV1: Co-location application (per site) | IW1: Project Management - carrier internal (per person per month) | IX1: Review work orders and related purchase orders - (1-4 hour per work order) | IY1: Project Management (per person per month) | IZ1: Construction Management (per person per month) | JA1: NOC Staff Augments - (per person per month) | JB1: Transition Planning for Cutover - complexity of equipment changes (per site) | JC1: Transition Planning for Cutover: Optical Network Subscriber and network migration services up to 16 nodes additional for add-on's | JD1: Legal review of customer communications related liability, indemnification and risk management in associated contracts and SOW - (6-8 hours) | JE1: Leasing or purchase of additional spectrum and related negotiations - (8-10 hours per agreement) | JF1: Preparation of purchase or lease agreement (3-5 hours per agreement) | JG1: Preparation and submission of any required FCC filings for permission (2-4 hours) | JH1: Product, Engineering and Operations Training Courses (classroom or web per student/day) | JI1: Onsite-Knowledge Transfer (per week) | JJ1: Subscription (per person 5-11 plus flat fee) | JK1: Optical Training Service - 3 to 4 day instruction | JL1: Open vRAN Training - 3 to 4 day | JM1: RAN/CORE Engineer - to provide on-site support during and after turn-over for 1 year (per person/per quarter) | JN1: Network Operations - to provide on-site support during and after turn-over – internal labor (per person/per year) | JO1: VOLTE Optimization (per site) | JP1: Structural Analysis - complexity of design (per site) | JQ1: Mount Analysis - size of tower, complexity of loading scenarios (per site) | JR1: Tower/Mount Mapping (per tower) | JS1: Review Contracts and Statements of Work - (2-3 hours per contract) | JT1: Executed Agreement (per site) | JU1: Fully Executed Amendment (per site) | JV1: Fully Executed Amendment - Non-MLA (per site) | JW1: Legal review of tower leases and support of negotiations - (8-10 hours per lease) | JX1: CIQ creation/review (per site) | JY1: SCF Creation / WO for new sites up to 12 carriers (per site) | JZ1: Engineering Services (RAN) (per site) | KA1: Engineering Services (Core) (per core) | KB1: Engineering Services (IP Network) (per site) | KC1: Engineering Services (Microwave Backhaul) (per link) | KD1: Engineering Services (Microwave Backhaul) FCC PCN Coordination) (per link) | KE1: Negotiation & Review of RF engineering, AM Detuning, Interference or Intermodulation analysis, RF Emissions Study, and RF Exposure Measurements contracts - (2-3 hours per contract) | KF1: Open RAN deployment services, CU/DU deployment instantiation support, per man/hour | KG1: Tier 2 & Tier 3 Operational Support, per man/hour | KH1: Remove RRH/RRU, Antenna and cabling | KI1: Remove 3 RRH/RRU, 3 Antenna and 3 cabling | KJ1: Remove BBU | KK1: Remove BBU and replace with new BBU | KL1: Antenna Install (with material) | KM1: Radio Install - each radio - height of radios on tower; # RF jumper cables per radio/antenna | KN1: Install new Power Trunk | KO1: Install new Fiber Trunk | KP1: Install Hybrid Cable (without Material) | KQ1: Fiber Inspection, Cleaning and Light Source & Power Meter Testing * Post Installation (per 24 fibers) | KR1: Raycap Install/Upgrade | KS1: Install Sector Frame | KT1: Installation of outdoor cabinet with one battery string | KU1: Installation of outdoor battery cabinet with two strings of batteries | KV1: Installation of indoor cabinet with one battery string | KW1: Installation of indoor battery cabinet with two strings of batteries | KX1: PDU Installation (tower top, providing PDU) | KY1: DC power plant Install | KZ1: Rip & Replace - Up to (3) Antenna Replacement (Install/Swap up to (3) new antennas, with associated jumpers, plumbing/re-plumbing etc.) | LA1: Rip & Replace - Up to (6) Antenna Replacement (Install/Swap up to (6) new antennas, with associated jumpers, plumbing/re-plumbing etc.) | LB1: Rip & Replace - Up to (3) Radios (RRH/RRU) Replacement (Install/Swap up to (3) new radios, with associated jumpers, plumbing/re-plumbing accordingly etc. No new antennas or hybrid) | LC1: Rip & Replace - Up to (6) Radios (RRH/RRU) Replacement (Install/Swap up to (6) new radios, with associated jumpers, plumbing/re-plumbing accordingly etc. No new antennas or hybrid) | LD1: Rip & Replace - Up to (6) New Radios, (3) New Antennas (Install/Swap up to (6) new radios, (3) new antennas with associated jumpers, plumbing/re-plumbing etc. No new hybrid) | LE1: Rip & Replace - Up to (9) New Radios, (3) New Antennas (Install/Swap up to (9) new radios, (3) new antennas with associated jumpers, plumbing/re-plumbing etc. No new hybrid) | LF1: Rip & Replace - Up to (12) New Radios, (6) New Antennas (Install/Swap up to (12) new radios, (6) new antennas with associated jumpers, plumbing/re-plumbing etc. No new hybrid) | LG1: Install/Swap up to (18) new radios, (9) new antennas with associated jumpers, plumbing/re-plumbing accordingly etc. No new hybrid) | LH1: Rip & Replace - Up to (3) Antenna Replacement (Install/Swap up to (3) new antennas, with associated jumpers, plumbing/re-plumbing etc.) | LI1: Rip & Replace - Up to (6) Antenna Replacement (Install/Swap up to (6) new antennas, with associated jumpers, plumbing/re-plumbing etc.) | LJ1: Rip & Replace - Up to (3) Radios (RRH/RRU) Replacement (Install/Swap up to (3) new radios, with associated jumpers, plumbing/re-plumbing accordingly etc. No new antennas or hybrid) | LK1: Rip & Replace - Up to (6) Radios (RRH/RRU) Replacement (Install/Swap up to (6) new radios, with associated jumpers, plumbing/re-plumbing accordingly etc. No new antennas or hybrid) | LL1: Rip & Replace - Up to (6) New Radios, (3) New Antennas (Install/Swap up to (6) new radios, (3) new antennas with associated jumpers, plumbing/re-plumbing etc. No new hybrid) | LM1: Rip & Replace - Up to (9) New Radios, (3) New Antennas (Install/Swap up to (9) new radios, (3) new antennas with associated jumpers, plumbing/re-plumbing etc. No new hybrid) | LN1: Rip & Replace - Up to (12) New Radios, (6) New Antennas (Install/Swap up to (12) new radios, (6) new antennas with associated jumpers, plumbing/re-plumbing etc. No new hybrid) | LO1: Up to six (6) entry ports (provide and install) | LP1: Tower or Shelter Buss bar addition | LQ1: Modification Design (per site) | LR1: Foundation Drawings/Inspection (per site) | LS1: Foundation Install <200' (Monopole/SS) | LT1: Foundation Install <200' (Monopole/SS) - Batch Plant | LU1: Demo Existing Tower | LV1: Minor Tower reinforcement/modifications - size of tower, extent of reinforcing | LW1: Build new <200' monopole (Erection only including crane) | LX1: Build new <200' monopole - Materials | LY1: Build new <300' SST (Erection only including crane) | LZ1: Build new <300' SST - Materials | MA1: Major Tower reinforcement/modifications - size of tower; tower design; tower foundations; guy wires | MB1: Serous Tower reinforcement/modifications - tower foundation mods; tower "wrap" | MC1: Carrier Relocation BOM (per site) | MD1: Carrier Relocation Civil Work (per site) | ME1: Carrier Relocation L&A Work (per site) | MF1: Site Work | MG1: Pre-Construction Site Walk - distance to site, size of tower | MH1: Parallel/New 200A Service | MI1: Upgrade to 200A Service | MJ1: Conduit and Fiber from Cabinet to H Frame | MK1: Hand Trenching from Backhaul Cabinet to New Cabinet (25') | ML1: Trenching and Cabling from New Cabinet to Power Panel (100’ – includes materials) | MM1: Re-cable MW Dish to New Cabinet (100’ – includes materials) | MN1: Install Ice Bridge (~30') | MO1: Cement Pad Install | MP1: Install BBU (rack or cabinet) | MQ1: Installation of new 19" rack in existing shelter | MR1: GPS install | MS1: Install collar mounts (Tri & Quad) V-Booms, (with materials) – (Per Mount) | MT1: Install MOVE platform (with Materials) (Per Mount) – ASK CM, MUCH HIGHER THAN ATN | MU1: DC Cable Pull Through Conduit Sizes #16AWG to #2AWG | MV1: Re-use/Re-working existing hybrid (Cabling to new equipment and baseband along with required testing) – up to 12 fibers | MW1: Install Hybrid Cable (with Material) | MX1: Upgrade Generator (modification reports, labor and modification) | MY1: Site Inspection - distance to site/complexity of site | MZ1: Environmental Work (per site) | NA1: Solar Design (per site) | NB1: 25-50 Amp Solar Upgrade (Install and Material) (per site) | NC1: 75-100 Amp Solar Upgrade (Install and Material) (per site) | ND1: Commissioning and Integration of single technology – per site | NE1: Closeout Package – Microwave (per link) | NF1: Closeout Package – (per site) | NG1: PIM Test and Remediate* 0 to 12 Paths | NH1: PIM Test and Remediate* 13 to 24 Paths | NI1: PIM Test and Remediate* 25 to 36 Paths | NJ1: Sweep Test (per line) | NK1: Review of interconnection and colocation agreements - (2-5 hours per contract) | NL1: Mobilization Less than or Equal to 250 Miles (2-4 Member Crew) | NM1: Mobilization 251-500 Miles (2-4 Member Crew) | NN1: Mobilization Greater than 500 Miles (2-4 Member Crew) | NO1: Mobilization Ground Crew - (2-4 Member Crew) - day rate | NP1: Mobilization Tower (2-4 Member Crew) - day rate | NQ1: Troubleshooting – RRU Replacement during the maintenance window on site per hour (Up to four-man crew) | NR1: Troubleshooting – RRU Replacement during the non-maintenance window on site per hour (Up to four-man crew) | NS1: General Troubleshooting – Up to 4 hours of onsite troubleshooting (Up to four men crew) | NT1: General Troubleshooting – Up to 8 hours of onsite troubleshooting (Up to four men crew) | NU1: Troubleshooting – Single Antenna replacement during the maintenance window | NV1: Troubleshooting – Antenna replacement during the non-maintenance window | NW1: Maintenance window work per night/per 3-man crew (per night) | NX1: Microwave Pathing - During Construction (per link) | NY1: Microwave Pathing - Post Construction (per link) | NZ1: Microwave Commissioning and Integration (per link) | OA1: Microwave relocation during construction (per site) | OB1: Max 1000 lbs - 6 hr day rate + hourly | OC1: Max lift 3,200 lbs - 6 hr day rate + hourly | OD1: Mobilization/demobilization is priced by the hourly rate for each helicopter - 6 hours/each | OE1: Crane - Ave 8 hour hook time based on tower height, miles, size, hourly rate | OF1: Bucket Truck (day rate) - dependent on location | OG1: Manlift or Boomlift 45-135' (day rate) - dependent on location | OH1: Manlift or Boomlift 45-135' (week rate) - dependent on location | OI1: Manlift or Boomlift 45-135' (monthly rate) - dependent on location | OJ1: Gin Pole Cost (per job) | OK1: Matting for Temporary Roads - Grid Mats Cost per 100ft | OL1: Snow Removal Equipment – per vehicle | OM1: Prime Mover or Similar for Towing - per vehicle | ON1: Straight Truck or Similar for Counterweight - per vehicle | OO1: Forklift of Similar for Component Transport - per vehicle | OP1: Cloud - Virtual EPC (SAE-GW, Firewall, Carrier Grade NAT, eCGF, MME, PCRF, up to 10k subscribers) | OQ1: Cloud - Virtual EPC (SAE-GW, Firewall, Carrier Grade NAT, eCGF, MME, PCRF, up to 50k subscribers) | OR1: Cloud - Virtual EPC (SAE-GW, Firewall, Carrier Grade NAT, eCGF, MME, PCRF, >200k subscribers) | OS1: Cloud - Virtual IMS (CTAS, IMS Core, MRF, AGW, A-SBC, HSS, ePDG, I-SBC, DRA, PCRF, 4G EPC, E-CSCF, LI interface, SMSC, MMSC, VM), up to 10k subscribers | OT1: Cloud - Virtual IMS (CTAS, IMS Core, MRF, AGW, A-SBC, HSS, ePDG, I-SBC, DRA, PCRF, 4G EPC, E-CSCF, LI interface, SMSC, MMSC, VM), up to 100k subscribers | OU1: Cloud - Virtual IMS (CTAS, IMS Core, MRF, AGW, A-SBC, HSS, ePDG, I-SBC, DRA, PCRF, 4G EPC, E-CSCF, LI interface, SMSC, MMSC, VM), >200k subscribers | OV1: Backbone WDM/optical transport networking equipment – (per network) | OW1: Deployment - Cloud Computing – (per network) | OX1: Deployment - Optical Transmission – (per network) | OY1: Deployment - Data Transmission – (per network) | OZ1: Deployment - GPON/XGS EMS – FTTH – (per network) | PA1: RAN EMS Deployment – (per network) | PB1: Research to ensure compliance with tower standards (ANSI/TIA-222-H) due to modifications triggering non-compliant towers to comply - (3-5 hours per site) | PC1: Due diligence review of modifications/upgrades for compliance with FCC NEPA rules, including Section 106 Review, and FAA and ASR rules (3-5 hours per site) | PD1: Depending on spectrum licenses, preparation and submission of any required FCC applications for modifications for facility upgrades, equipment changes, and preparation of any FAA applications and ASR applications for structure modifications or lighting changes - (2-4 hours) | PE1: Preparation and submission of any required post-construction filings including notifications to FAA and FCC of completion of construction, and any required application filings for spectrum applications or licenses - (2-4 hours) | PF1: Optical Fiber Optic Characterization - 8 Strands | PG1: Onsite Sr. Optical Engineer Support (40 hours) | PH1: Remote Sr Optical Engineer Support (40 hours) | PI1: NAIC Integration Add-on for UPS, Router, Switch, Server, Appliance, Storage 10RU+ per Device (from 5 to 15 devices) | PJ1: NAIC Integration Add-on for UPS, Router, Switch, Server, Appliance, Storage Up to 9RU per Device (10 - 20 devices) | PK1: Optical 2-Slot to 16 Slot Level 1 Staging | PL1: Engineering consulting for network planning & scenario analysis (remote per week) | PM1: IoT (Interoperability testing) for RAN & Core compatibility (per network) | PN1: IoT (Interoperability testing) for RAN compatibility (per network) | PO1: Contract review - (2-4 hours) | PP1: National Environmental Policy Act (NEPA) & National Historic Preservation Act (NHPA) | PQ1: Due Diligence Review for compliance with FCC NEPA and Section 106 rules for collocation - (3-5 hours per site) | PR1: Legal Review for Environmental Consultant SOWs for NEPA and Section 106. and all work related - (2-3 hours per site) | PS1: Regulatory Management (per site) | PT1: Negotiate and review vendor contracts - (6-12 hours per contract) | PU1: Legal review of Environmental Consultant Contracts and SOWs for Phase I Environmental Review - (1-3 hours per contract) | PV1: Preparation of any required FAA and ASR filings - (5-8 hours per application) | PW1: Legal fees for research and preparation and filing for any zoning or local permitting requirements - (3-4 hours per site) | PX1: Review insurance requirements and OSHA standards for tower climbers - (3-6 hours) | PY1: Spectrum acquisition agreement - (4-8 hours per contract) | PZ1: Review contracts for proper insurance, indemnification, liability and risk management - (2-4 hours) | QA1: Review contracts for disposal to ensure compliance with law and liability related issues - (2-4 hours per contract) | QB1: Review of applicable tax code (2-4 hours per inquiry) | QC1: Zoning and Permitting determination (per site) | QD1: Zoning drawing (per site) | QE1: Zoning Approval (per site) | QF1: Attendance at additional zoning hearings | QG1: Complex zoning (including attendance at 2 hearings) | QH1: Completion and submittal of permit (building or electrical) (per site) | QI1: Permit Pickup (per site) | QJ1: Legal fees for research and preparation and filing for any zoning or local permitting requirements (per site) | QK1: Jurisdictional Fees (per site) | QL1: Phase 1 ESA (per site) | QM1: NEPA/SHPO Checklist only (per site) | QN1: Photo Simulation (per site) | QO1: Negotiation & Review of RF engineering contracts – (2-4 hours per contract) | QP1: FCC Licensing - Microwave - (1-2 hours) | QQ1: New facilities - (1-2 hours) | QR1: Modify facilities - (4-6 hours) | QS1: Requests for Special Temporary Authority - (6-8 hours) | QT1: Rule Waivers - (4-6 hours) | QU1: Spectrum Leasing (De Facto) - (2-4 hours) | QV1: FCC legal review and application filings - Fixed Wireless Link Replacement (2-4 hours) | QW1: Staging, transportation, warehousing and disposal (per site) | QX1: Decommission - Up to (3) antennas (6) runs of coax, mounts and miscellaneous hardware from tower top to inside the shelter to QWS | QY1: Decommission - Up to (9) antennas (12) runs of coax, mounts and miscellaneous hardware from tower top to inside the shelter to QWS | QZ1: Decommission - Each additional antenna (including) , associated mount, line and miscellaneous hardware. | RA1: Decommission - Microwave antenna (including), associated mount, elliptical line and miscellaneous hardware. | RB1: Decommission In Shelter - 2nd eNodeB Rack, diplexers w/mount, RF coax jumpers: | RC1: Decommission - existing hybrid cable | RD1: Decommission - remove waveguide, fiber, CAT5/6, coaxial cable up to 1 5/8" (per foot) | RE1: Decommission - one outdoor cabinet | RF1: Decommission - Indoor 19" Rack with existing legacy BBU | RG1: Decommission - Indoor 19" Rack with up two battery strings | RH1: Decommission - Single antenna | RI1: Inventory, processing, destruction, disposal, recycling reporting and certification of Recycling - Citing ITAR (per site) - Transport not included | RJ1: New, Modification (Microwave) - per call sign (with$250 regulatory fee) | RK1: Modify facilities - per call sign | RL1: Extension of Construction Authority (Microwave) - per call sign | RM1: Duplicate License (Microwave) - per call sign | RN1: Requests for Special Temporary Authority (Microwave) - Fee Exempt (per link) | RO1: Rule Waivers/Spectrum Leasing for new or sublease, Transfer of Control of a Lessee or a Sublessee or Extend Term of a Lease or Sublease (Microwave/Broadband 2.5GHz) - per call sign -$70 each additional | RP1: Major modification for spectrum leasing (Microwave/Broadband 2.5GHz) - per lease ID | RQ1: New, Modification or Major Modification (Broadband 2.5GHz) - per call sign | RR1: Certification of Completion of Construction (Broadband 2.5GHz) - per call sign | RS1: Extension of Construction Authority (Broadband 2.5 GHz) - per call sign | RT1: Special Temporary Authority (Broadband 2.5 GHz) - per call sign or Market/Channel Block | RU1: New, Additional Facility, Major Modification (Cellular Radiotelephone) - per call sign | RV1: Minor Modification (Cellular Radiotelephone) - per call sign | RW1: Special Temporary Authority (Cellular Radiotelephone) - per request | RX1: Spectrum Leasing for new or sublease / Assignment of authorization or Transfer of Control (Full or Partial) / Transfer of Control of a Lessee or a Sublessee, Extend Term of a Lease or Sublease or Major Modification for Spectrum Leasing (Cellular Radio Telephone) - per call sign/lease | RY1: Minor modification for spectrum leasing (Cellular Radiotelephone) - per lease ID | RZ1: Domestic 214 Application -$1,155.00 | SA1: Tariff Filing Fee (per transmittal or cover letter) | SB1: Application for Special Permission Filing (request for waiver of any rule in Part 61) | SC1: Waiver of Part 69 Tariff Rules (per request) | SD1: Review of Depreciation Update Study (single state) | SE1: Each Additional State | SF1: Petition for Waiver (per petition) | SG1: Part 36 Separation Rules (per request) | SH1: Fence/Compound Work (per site) | SI1: Security Guard - Hourly Rate | SJ1: Snow Cat Usage (8-12 hours day, plus operator expense) | SK1: Contract review & negotiations (2-4 hours) | SL1: Logistics and Material Management & Warehousing (per site) | SM1: Kitting (per site) (receive products from multiple OEMs and suppliers and integrate the related items into a single package, pallet or other format as desired) | SN1: Storage (monthly) | SO1: Pre and post swap cluster KPI monitoring (per site) | SP1: Pre and post swap cluster drive testing (per site) | SQ1: Single site verification drive testing (per site) | SR1: Troubleshooting (per hour/per man) | SS1: Pre-Launch Cluster Optimization - Pre and Post Drive Test (Up to 12 Carrier) (per site) | ST1: Mobility or FWA (non M-MIMO) Ground services base integration, cut over support, call / data test package for site with shelter (per site) | SU1: Cluster Optimization (Drive based) for FWA or Mobility (Per Technology (LTE or UMTS)), 10-Site Cluster) | SV1: Single site verification stationary testing for FWA (per site) | SW1: Rehome E911 Drive Cost (per Cell Site) - ensuring call connects to right 911 | SX1: Accuracy Testing (50 meter x/y) (Cost per Test Point, Average about 10 test points per County) | SY1: PSAP or County level KPI Accuracy Results Reports (Per Report) | SZ1: TXT2911 Rehome/Reset (Per Radio Technology, One Time Fee) | TA1: VoWiFi Rehome/Reset (Per Radio Technology, One Time Fee) | TB1: Mobilization fee (Charge each time tester is moved to a new state or carrier market area) | TC1: Stand-by Fee (Per day) | TD1: Hosted SMLC Location Server License and Set-up- One Time Fee (“OTF”) (per project) | TE1: Hosted SMLC Location Server Monthly Recurring Fee per Cell Site (“MRF”) | TF1: Project Management Set-up - One Time Fee (“OTF”) (per site dependent on complexity) | TG1: LPM Reporting Tool reset up One Time Fee (“OTF”) Per Radio Technology | TH1: End User Location - Truck roll or self-install (per end user) | TI1: Legal review of customer notices & communications; public relations (2-4 hours) | TJ1: Mobilization Costs - Virgin Islands (per site)
A2: 20100 | B2: 61727 | C2: 197500 | D2: 262.5 | E2: 402.5 | F2: 15297.5 | G2: 15700 | H2: 8146.56 | I2: 40750 | J2: 78500 | K2: 177500 | L2: 287.5 | M2: 230 | N2: 93 | O2: 1500 | P2: 189 | Q2: 12250 | R2: 1547.5 | S2: 3112.5 | T2: 6502.5 | U2: 41808 | V2: 26250 | W2: 5772.5 | X2: 10558 | Y2: 8033 | Z2: 6591 | AA2: 12247.5 | AB2: 93750 | AC2: 120732.5 | AD2: 358903.5 | AE2: 599268.5 | AF2: 154400 | AG2: 405900 | AH2: 695600 | AI2: 102550 | AJ2: 50427.5 | AK2: 33842.5 | AL2: 23140 | AM2: 363500 | AN2: 525000 | AO2: 731500 | AP2: 17333.5 | AQ2: 91833.5 | AR2: 283666.5 | AS2: 92500 | AT2: 247500 | AU2: 21380 | AV2: 30500.5 | AW2: 33492 | AX2: 39216.5 | AY2: 13350 | AZ2: 30250 | BA2: 13350 | BB2: 30250 | BC2: 12000 | BD2: 7000 | BE2: 7450 | BF2: 2807 | BG2: 2900.5 | BH2: 2769.5 | BI2: 1137.5 | BJ2: 3071.75 | BK2: 1200.85 | BL2: 3484 | BM2: 4370 | BN2: 18625 | BO2: 4280 | BP2: 1040 | BQ2: 1725 | BR2: 3497 | BS2: 6236.75 | BT2: 7125.25 | BU2: 3060.25 | BV2: 2043.5 | BW2: 2246.5 | BX2: 4556.5 | BY2: 7349.5 | BZ2: 2750 | CA2: 570 | CB2: 38450 | CC2: 109683 | CD2: 194850 | CE2: 18500 | CF2: 28500 | CG2: 9436 | CH2: 17010.5 | CI2: 3726.5 | CJ2: 4789.5 | CK2: 12921 | CL2: 24917.5 | CM2: 8000 | CN2: 31117 | CO2: 616098 | CP2: 955582 | CQ2: 1672552.5 | CR2: 17021 | CS2: 29602 | CT2: 17021 | CU2: 35340 | CV2: 17297.5 | CW2: 41078.5 | CX2: 4989.5 | CY2: 16432.5 | CZ2: 1100000 | DA2: 649500 | DB2: 375000 | DC2: 75000 | DD2: 200500 | DE2: 112500 | DF2: 350 | DG2: 41500 | DH2: 100000 | DI2: 57000 | DJ2: 226586 | DK2: 45500 | DL2: 108000 | DM2: 52500 | DN2: 93 | DO2: 45927 | DP2: 47933 | DQ2: 51248 | DR2: 51248 | DS2: 47550.5 | DT2: 73365 | DU2: 107489 | DV2: 9231 | DW2: 9673 | DX2: 10778 | DY2: 10778 | DZ2: 10778 | EA2: 10778 | EB2: 10778 | EC2: 10778 | ED2: 6426 | EE2: 4600 | EF2: 12053 | EG2: 9000 | EH2: 14969 | EI2: 11000 | EJ2: 175 | EK2: 1627 | EL2: 525000 | EM2: 12000 | EN2: 12000 | EO2: 80000 | EP2: 21906.5 | EQ2: 5775 | ER2: 2150 | ES2: 1675 | ET2: 825 | EU2: 19663.5 | EV2: 22000 | EW2: 725000 | EX2: 1325000 | EY2: 2750000 | EZ2: 6361199 | FA2: 525000 | FB2: 1750000 | FC2: 4250000 | FD2: 816000 | FE2: 325000 | FF2: 160000 | FG2: 375000 | FH2: 750000 | FI2: 1750000 | FJ2: 500000 | FK2: 150000 | FL2: 75000 | FM2: 325000 | FN2: 600000 | FO2: 400000 | FP2: 500000 | FQ2: 6250000 | FR2: 10000000 | FS2: 1079973.5 | FT2: 600000 | FU2: 825000 | FV2: 760000 | FW2: 4910344 | FX2: 13190844 | FY2: 949230 | FZ2: 776712.5 | GA2: 4910344 | GB2: 15438575 | GC2: 360000 | GD2: 225000 | GE2: 325000 | GF2: 1118000 | GG2: 17750 | GH2: 19750 | GI2: 14000 | GJ2: 130000 | GK2: 208333.5 | GL2: 587500 | GM2: 991666.5 | GN2: 175000 | GO2: 487500 | GP2: 825000 | GQ2: 525000 | GR2: 725000 | GS2: 225000 | GT2: 725000 | GU2: 575000 | GV2: 1250000 | GW2: 925000 | GX2: 192500 | GY2: 115000 | GZ2: 205000 | HA2: 22500 | HB2: 32000 | HC2: 5900 | HD2: 750000 | HE2: 1125000 | HF2: 107500 | HG2: 53500 | HH2: 725000 | HI2: 345000 | HJ2: 300000 | HK2: 7991.5 | HL2: 0.53 | HM2: 2.415 | HN2: 2.935 | HO2: 0.645 | HP2: 3.37 | HQ2: 3.09 | HR2: 0.88 | HS2: 4.095 | HT2: 3.635 | HU2: 5500 | HV2: 5500 | HW2: 5500 | HX2: 11000 | HY2: 11000 | HZ2: 2550 | IA2: 925 | IB2: 4325 | IC2: 1497.085 | ID2: 5750 | IE2: 3250 | IF2: 16450 | IG2: 1491.565 | IH2: 7500 | II2: 1750 | IJ2: 12972.5 | IK2: 3682.165 | IL2: 1459.62 | IM2: 4319.1 | IN2: 109961.5 | IO2: 22500 | IP2: 48855.265 | IQ2: 1500 | IR2: 636.625 | IS2: 343 | IT2: 762.5 | IU2: 1700 | IV2: 639.635 | IW2: 10380 | IX2: 1250 | IY2: 38925 | IZ2: 23808 | JA2: 16002.5 | JB2: 10000 | JC2: 7250 | JD2: 3500 | JE2: 4500 | JF2: 2000 | JG2: 1500 | JH2: 1187.5 | JI2: 9500 | JJ2: 25100 | JK2: 14367 | JL2: 12500 | JM2: 75000 | JN2: 124800 | JO2: 4301.5 | JP2: 3405.57 | JQ2: 4625 | JR2: 12402.445 | JS2: 1250 | JT2: 4444.38 | JU2: 3820.34 | JV2: 3969.755 | JW2: 4500 | JX2: 612.31 | JY2: 1900 | JZ2: 375 | KA2: 27500 | KB2: 625 | KC2: 450 | KD2: 2500 | KE2: 1250 | KF2: 300 | KG2: 300 | KH2: 2425 | KI2: 3475 | KJ2: 600 | KK2: 2850 | KL2: 6250 | KM2: 2250 | KN2: 4250 | KO2: 4650 | KP2: 4412.175 | KQ2: 3211.825 | KR2: 783.335 | KS2: 6711.13 | KT2: 5005.545 | KU2: 7159.335 | KV2: 632.815 | KW2: 2969.125 | KX2: 1419.64 | KY2: 2112.5 | KZ2: 10445.195 | LA2: 17485.71 | LB2: 13150.56 | LC2: 16494.195 | LD2: 23231.63 | LE2: 25875 | LF2: 39407.48 | LG2: 43474.515 | LH2: 7939.515 | LI2: 14548.895 | LJ2: 11055.15 | LK2: 15506.515 | LL2: 19345.745 | LM2: 21074.215 | LN2: 37568.43 | LO2: 1219.405 | LP2: 375.985 | LQ2: 3129.52 | LR2: 8186.235 | LS2: 85362.955 | LT2: 184351.935 | LU2: 19054.5 | LV2: 5500 | LW2: 21577 | LX2: 76857.025 | LY2: 29416 | LZ2: 63257.49 | MA2: 55000 | MB2: 175000 | MC2: 7719.995 | MD2: 17071.43 | ME2: 44361.865 | MF2: 6500 | MG2: 1560.595 | MH2: 18256.895 | MI2: 6500 | MJ2: 1950 | MK2: 2237.23 | ML2: 16750 | MM2: 1600 | MN2: 5565 | MO2: 5967.985 | MP2: 2896.73 | MQ2: 3059 | MR2: 1222.735 | MS2: 5835 | MT2: 31100 | MU2: 625 | MV2: 3760.5 | MW2: 18900 | MX2: 49250 | MY2: 12900 | MZ2: 6500 | NA2: 17500 | NB2: 112500 | NC2: 256250 | ND2: 2207.755 | NE2: 2000 | NF2: 1500 | NG2: 5032.125 | NH2: 4200 | NI2: 5375 | NJ2: 535.5 | NK2: 1750 | NL2: 3900 | NM2: 2835 | NN2: 5077.25 | NO2: 6467.305 | NP2: 14285.5 | NQ2: 989.315 | NR2: 989.315 | NS2: 3957.27 | NT2: 7914.535 | NU2: 3229.07 | NV2: 3229.07 | NW2: 6977.41 | NX2: 2625 | NY2: 4083.335 | NZ2: 2546.5 | OA2: 21717.425 | OB2: 22000 | OC2: 56000 | OD2: 34500 | OE2: 15950 | OF2: 1093.75 | OG2: 1377.235 | OH2: 4196.77 | OI2: 6305 | OJ2: 20086.28 | OK2: 5000 | OL2: 1000 | OM2: 6250 | ON2: 1250 | OO2: 1250 | OP2: 737446.5 | OQ2: 1588571.5 | OR2: 2126709 | OS2: 998615 | OT2: 1839815 | OU2: 2575000 | OV2: 187500 | OW2: 10025000 | OX2: 10025000 | OY2: 5007500 | OZ2: 55000 | PA2: 475000 | PB2: 2000 | PC2: 2000 | PD2: 1500 | PE2: 1500 | PF2: 6634 | PG2: 19049 | PH2: 12536 | PI2: 4593 | PJ2: 4173.5 | PK2: 5275 | PL2: 19051.5 | PM2: 208000 | PN2: 208000 | PO2: 1500 | PP2: 1425 | PQ2: 2000 | PR2: 1250 | PS2: 1100 | PT2: 4500 | PU2: 1000 | PV2: 3250 | PW2: 1750 | PX2: 2250 | PY2: 3000 | PZ2: 1500 | QA2: 1500 | QB2: 1500 | QC2: 661.625 | QD2: 2303.48 | QE2: 2340.69 | QF2: 1275 | QG2: 5091.805 | QH2: 1490.04 | QI2: 782.52 | QJ2: 1750 | QK2: 3875 | QL2: 3232.545 | QM2: 466.33 | QN2: 1500 | QO2: 1500 | QP2: 750 | QQ2: 750 | QR2: 2500 | QS2: 3500 | QT2: 2500 | QU2: 1500 | QV2: 1500 | QW2: 3496 | QX2: 6147.36 | QY2: 13437.265 | QZ2: 531.725 | RA2: 3872.81 | RB2: 2865.74 | RC2: 3036.555 | RD2: 3.895 | RE2: 2755.485 | RF2: 5202.665 | RG2: 5515.505 | RH2: 359.555 | RI2: 1950 | RJ2: 555 | RK2: 222.5 | RL2: 110 | RM2: 70 | RN2: 140 | RO2: 110 | RP2: 305 | RQ2: 305 | RR2: 895 | RS2: 305 | RT2: 140 | RU2: 450 | RV2: 120 | RW2: 395 | RX2: 450 | RY2: 120 | RZ2: 1155 | SA2: 925 | SB2: 925 | SC2: 925 | SD2: 37500 | SE2: 1285 | SF2: 8500 | SG2: 8500 | SH2: 12501.6 | SI2: 35 | SJ2: 1950 | SK2: 1500 | SL2: 10964.5 | SM2: 662.5 | SN2: 5000 | SO2: 2326 | SP2: 3970.5 | SQ2: 2213 | SR2: 246 | SS2: 4156 | ST2: 9000 | SU2: 74900 | SV2: 6000 | SW2: 471.5 | SX2: 287.5 | SY2: 325 | SZ2: 2500 | TA2: 5000 | TB2: 1000 | TC2: 1200 | TD2: 40000 | TE2: 25 | TF2: 7500 | TG2: 5000 | TH2: 7500 | TI2: 1500 | TJ2: 15800
A3: e6b4c1111b7ab8d006242062f54bcb96 | B3: aab4c1111b7ab8d006242062f54bcb97 | C3: 22b4c1111b7ab8d006242062f54bcb98 | D3: 26b4c1111b7ab8d006242062f54bcb98 | E3: 2ab4c1111b7ab8d006242062f54bcb98 | F3: 2eb4c1111b7ab8d006242062f54bcb98 | G3: 22b4c1111b7ab8d006242062f54bcb99 | H3: a6b4c1111b7ab8d006242062f54bcb99 | I3: aab4c1111b7ab8d006242062f54bcb99 | J3: 26b405111b7ab8d006242062f54bcb16 | K3: 2ab405111b7ab8d006242062f54bcb16 | L3: aeb405111b7ab8d006242062f54bcb16 | M3: 26b405111b7ab8d006242062f54bcb17 | N3: aab405111b7ab8d006242062f54bcb17 | O3: 22b405111b7ab8d006242062f54bcb18 | P3: 26b405111b7ab8d006242062f54bcb18 | Q3: 2ab405111b7ab8d006242062f54bcb18 | R3: 2eb405111b7ab8d006242062f54bcb18 | S3: 22b405111b7ab8d006242062f54bcb19 | T3: a6b405111b7ab8d006242062f54bcb19 | U3: 2eb405111b7ab8d006242062f54bcb19 | V3: a2b405111b7ab8d006242062f54bcb1a | W3: a6b405111b7ab8d006242062f54bcb1a | X3: aab405111b7ab8d006242062f54bcb1a | Y3: aeb405111b7ab8d006242062f54bcb1a | Z3: a2b405111b7ab8d006242062f54bcb1b | AA3: a6b405111b7ab8d006242062f54bcb1b | AB3: aab405111b7ab8d006242062f54bcb1b | AC3: aeb405111b7ab8d006242062f54bcb1b | AD3: a2b405111b7ab8d006242062f54bcb1c | AE3: a6b405111b7ab8d006242062f54bcb1c | AF3: aab405111b7ab8d006242062f54bcb1c | AG3: aeb405111b7ab8d006242062f54bcb1c | AH3: a2b405111b7ab8d006242062f54bcb1d | AI3: 2ab405111b7ab8d006242062f54bcb1d | AJ3: aeb405111b7ab8d006242062f54bcb1d | AK3: 26b405111b7ab8d006242062f54bcb1e | AL3: aab405111b7ab8d006242062f54bcb1e | AM3: aeb405111b7ab8d006242062f54bcb1e | AN3: a2b405111b7ab8d006242062f54bcb1f | AO3: a6b405111b7ab8d006242062f54bcb1f | AP3: aab405111b7ab8d006242062f54bcb1f | AQ3: aeb405111b7ab8d006242062f54bcb1f | AR3: a2b405111b7ab8d006242062f54bcb20 | AS3: a6b405111b7ab8d006242062f54bcb20 | AT3: aab405111b7ab8d006242062f54bcb20 | AU3: aeb405111b7ab8d006242062f54bcb20 | AV3: a2b405111b7ab8d006242062f54bcb21 | AW3: a6b405111b7ab8d006242062f54bcb21 | AX3: aab405111b7ab8d006242062f54bcb21 | AY3: aeb405111b7ab8d006242062f54bcb21 | AZ3: a2b405111b7ab8d006242062f54bcb22 | BA3: a6b405111b7ab8d006242062f54bcb22 | BB3: aab405111b7ab8d006242062f54bcb22 | BC3: aeb405111b7ab8d006242062f54bcb22 | BD3: a2b405111b7ab8d006242062f54bcb23 | BE3: a6b405111b7ab8d006242062f54bcb23 | BF3: aab405111b7ab8d006242062f54bcb23 | BG3: aeb405111b7ab8d006242062f54bcb23 | BH3: a2b405111b7ab8d006242062f54bcb24 | BI3: a6b405111b7ab8d006242062f54bcb24 | BJ3: aab405111b7ab8d006242062f54bcb24 | BK3: aeb405111b7ab8d006242062f54bcb24 | BL3: a2b405111b7ab8d006242062f54bcb25 | BM3: 2ab405111b7ab8d006242062f54bcb25 | BN3: aeb405111b7ab8d006242062f54bcb25 | BO3: a2b405111b7ab8d006242062f54bcb26 | BP3: a6b405111b7ab8d006242062f54bcb26 | BQ3: aab405111b7ab8d006242062f54bcb26 | BR3: 22b405111b7ab8d006242062f54bcb27 | BS3: a6b405111b7ab8d006242062f54bcb27 | BT3: 2eb405111b7ab8d006242062f54bcb27 | BU3: 22b405111b7ab8d006242062f54bcb28 | BV3: a6b405111b7ab8d006242062f54bcb28 | BW3: 2eb405111b7ab8d006242062f54bcb28 | BX3: a2b405111b7ab8d006242062f54bcb29 | BY3: 2ab405111b7ab8d006242062f54bcb29 | BZ3: aeb405111b7ab8d006242062f54bcb29 | CA3: 26b405111b7ab8d006242062f54bcb2a | CB3: aab405111b7ab8d006242062f54bcb2a | CC3: 22b405111b7ab8d006242062f54bcb2b | CD3: a6b405111b7ab8d006242062f54bcb2b | CE3: 2eb405111b7ab8d006242062f54bcb2b | CF3: a2b405111b7ab8d006242062f54bcb2c | CG3: a6b405111b7ab8d006242062f54bcb2c | CH3: aab405111b7ab8d006242062f54bcb2c | CI3: aeb405111b7ab8d006242062f54bcb2c | CJ3: a2b405111b7ab8d006242062f54bcb2d | CK3: a6b405111b7ab8d006242062f54bcb2d | CL3: aab405111b7ab8d006242062f54bcb2d | CM3: aeb405111b7ab8d006242062f54bcb2d | CN3: a2b405111b7ab8d006242062f54bcb2e | CO3: a6b405111b7ab8d006242062f54bcb2e | CP3: aab405111b7ab8d006242062f54bcb2e | CQ3: aeb405111b7ab8d006242062f54bcb2e | CR3: 26b405111b7ab8d006242062f54bcb2f | CS3: aab405111b7ab8d006242062f54bcb2f | CT3: 22b405111b7ab8d006242062f54bcb30 | CU3: a6b405111b7ab8d006242062f54bcb30 | CV3: 22b405111b7ab8d006242062f54bcb31 | CW3: a6b405111b7ab8d006242062f54bcb32 | CX3: 2eb405111b7ab8d006242062f54bcb32 | CY3: a2b405111b7ab8d006242062f54bcb33 | CZ3: 2ab405111b7ab8d006242062f54bcb33 | DA3: aeb405111b7ab8d006242062f54bcb33 | DB3: 26b405111b7ab8d006242062f54bcb34 | DC3: aab405111b7ab8d006242062f54bcb34 | DD3: 22b405111b7ab8d006242062f54bcb35 | DE3: a6b405111b7ab8d006242062f54bcb35 | DF3: 2eb405111b7ab8d006242062f54bcb35 | DG3: a2b405111b7ab8d006242062f54bcb36 | DH3: 2ab405111b7ab8d006242062f54bcb36 | DI3: aeb405111b7ab8d006242062f54bcb36 | DJ3: 26b405111b7ab8d006242062f54bcb37 | DK3: 2ab405111b7ab8d006242062f54bcb37 | DL3: 2eb405111b7ab8d006242062f54bcb37 | DM3: 22b405111b7ab8d006242062f54bcb38 | DN3: 26b405111b7ab8d006242062f54bcb38 | DO3: aab405111b7ab8d006242062f54bcb38 | DP3: 22b405111b7ab8d006242062f54bcb39 | DQ3: a6b405111b7ab8d006242062f54bcb39 | DR3: 2eb405111b7ab8d006242062f54bcb39 | DS3: a2b405111b7ab8d006242062f54bcb3a | DT3: 2ab405111b7ab8d006242062f54bcb3a | DU3: aeb405111b7ab8d006242062f54bcb3a | DV3: a2b405111b7ab8d006242062f54bcb3b | DW3: a6b405111b7ab8d006242062f54bcb3b | DX3: aab405111b7ab8d006242062f54bcb3b | DY3: aeb405111b7ab8d006242062f54bcb3b | DZ3: a2b405111b7ab8d006242062f54bcb3c | EA3: a6b405111b7ab8d006242062f54bcb3c | EB3: aab405111b7ab8d006242062f54bcb3c | EC3: aeb405111b7ab8d006242062f54bcb3c | ED3: a2b405111b7ab8d006242062f54bcb3d | EE3: a6b405111b7ab8d006242062f54bcb3d | EF3: aab405111b7ab8d006242062f54bcb3d | EG3: aeb405111b7ab8d006242062f54bcb3d | EH3: a2b405111b7ab8d006242062f54bcb3e | EI3: a6b405111b7ab8d006242062f54bcb3e | EJ3: 2eb405111b7ab8d006242062f54bcb3e | EK3: 22b405111b7ab8d006242062f54bcb3f | EL3: a6b405111b7ab8d006242062f54bcb3f | EM3: 2eb405111b7ab8d006242062f54bcb3f | EN3: 22b405111b7ab8d006242062f54bcb40 | EO3: 26b405111b7ab8d006242062f54bcb40 | EP3: 2ab405111b7ab8d006242062f54bcb40 | EQ3: 2eb405111b7ab8d006242062f54bcb40 | ER3: 22b405111b7ab8d006242062f54bcb41 | ES3: 26b405111b7ab8d006242062f54bcb41 | ET3: 2ab405111b7ab8d006242062f54bcb41 | EU3: 2eb405111b7ab8d006242062f54bcb41 | EV3: 22b405111b7ab8d006242062f54bcb42 | EW3: 26b405111b7ab8d006242062f54bcb42 | EX3: 2ab405111b7ab8d006242062f54bcb42 | EY3: 2eb405111b7ab8d006242062f54bcb42 | EZ3: 22b405111b7ab8d006242062f54bcb43 | FA3: 26b405111b7ab8d006242062f54bcb43 | FB3: 2ab405111b7ab8d006242062f54bcb43 | FC3: 2eb405111b7ab8d006242062f54bcb43 | FD3: 22b405111b7ab8d006242062f54bcb44 | FE3: 26b405111b7ab8d006242062f54bcb44 | FF3: 2ab405111b7ab8d006242062f54bcb44 | FG3: 2eb405111b7ab8d006242062f54bcb44 | FH3: 22b405111b7ab8d006242062f54bcb45 | FI3: 26b405111b7ab8d006242062f54bcb45 | FJ3: 2ab405111b7ab8d006242062f54bcb45 | FK3: 2eb405111b7ab8d006242062f54bcb45 | FL3: 22b405111b7ab8d006242062f54bcb46 | FM3: 26b405111b7ab8d006242062f54bcb46 | FN3: 2ab405111b7ab8d006242062f54bcb46 | FO3: 2eb405111b7ab8d006242062f54bcb46 | FP3: 22b405111b7ab8d006242062f54bcb47 | FQ3: 26b405111b7ab8d006242062f54bcb47 | FR3: 2ab405111b7ab8d006242062f54bcb47 | FS3: 2eb405111b7ab8d006242062f54bcb47 | FT3: 22b405111b7ab8d006242062f54bcb48 | FU3: 26b405111b7ab8d006242062f54bcb48 | FV3: 3ab405111b7ab8d006242062f54bcb48 | FW3: 3eb405111b7ab8d006242062f54bcb48 | FX3: 32b405111b7ab8d006242062f54bcb49 | FY3: 36b405111b7ab8d006242062f54bcb49 | FZ3: 3ab405111b7ab8d006242062f54bcb49 | GA3: 3eb405111b7ab8d006242062f54bcb49 | GB3: 32b405111b7ab8d006242062f54bcb4a | GC3: 36b405111b7ab8d006242062f54bcb4a | GD3: 3ab405111b7ab8d006242062f54bcb4a | GE3: 3eb405111b7ab8d006242062f54bcb4a | GF3: b2b405111b7ab8d006242062f54bcb4b | GG3: b6b405111b7ab8d006242062f54bcb4b | GH3: bab405111b7ab8d006242062f54bcb4b | GI3: beb405111b7ab8d006242062f54bcb4b | GJ3: b2b405111b7ab8d006242062f54bcb4c | GK3: b6b405111b7ab8d006242062f54bcb4c | GL3: bab405111b7ab8d006242062f54bcb4c | GM3: beb405111b7ab8d006242062f54bcb4c | GN3: b2b405111b7ab8d006242062f54bcb4d | GO3: b6b405111b7ab8d006242062f54bcb4d | GP3: bab405111b7ab8d006242062f54bcb4d | GQ3: beb405111b7ab8d006242062f54bcb4d | GR3: 76b405111b7ab8d006242062f54bcb4e | GS3: 72b405111b7ab8d006242062f54bcb4f | GT3: 76b405111b7ab8d006242062f54bcb4f | GU3: 7ab405111b7ab8d006242062f54bcb4f | GV3: 7eb405111b7ab8d006242062f54bcb4f | GW3: 72b405111b7ab8d006242062f54bcb50 | GX3: 76b405111b7ab8d006242062f54bcb50 | GY3: 7ab405111b7ab8d006242062f54bcb50 | GZ3: 7eb405111b7ab8d006242062f54bcb50 | HA3: 72b405111b7ab8d006242062f54bcb51 | HB3: 76b405111b7ab8d006242062f54bcb51 | HC3: 7ab405111b7ab8d006242062f54bcb51 | HD3: 7eb405111b7ab8d006242062f54bcb51 | HE3: 72b405111b7ab8d006242062f54bcb52 | HF3: 76b405111b7ab8d006242062f54bcb52 | HG3: 7ab405111b7ab8d006242062f54bcb52 | HH3: 7eb405111b7ab8d006242062f54bcb52 | HI3: 72b405111b7ab8d006242062f54bcb53 | HJ3: 76b405111b7ab8d006242062f54bcb53 | HK3: 7ab405111b7ab8d006242062f54bcb53 | HL3: 7eb405111b7ab8d006242062f54bcb53 | HM3: 72b405111b7ab8d006242062f54bcb54 | HN3: 76b405111b7ab8d006242062f54bcb54 | HO3: 32b405111b7ab8d006242062f54bcb61 | HP3: 36b405111b7ab8d006242062f54bcb61 | HQ3: 3ab405111b7ab8d006242062f54bcb61 | HR3: 3eb405111b7ab8d006242062f54bcb61 | HS3: 32b405111b7ab8d006242062f54bcb62 | HT3: 36b405111b7ab8d006242062f54bcb62 | HU3: 3ab405111b7ab8d006242062f54bcb62 | HV3: 3eb405111b7ab8d006242062f54bcb62 | HW3: 32b405111b7ab8d006242062f54bcb63 | HX3: 36b405111b7ab8d006242062f54bcb63 | HY3: 3ab405111b7ab8d006242062f54bcb63 | HZ3: 3eb405111b7ab8d006242062f54bcb63 | IA3: 32b405111b7ab8d006242062f54bcb64 | IB3: 36b405111b7ab8d006242062f54bcb64 | IC3: 3ab405111b7ab8d006242062f54bcb64 | ID3: 3eb405111b7ab8d006242062f54bcb64 | IE3: 32b405111b7ab8d006242062f54bcb65 | IF3: 36b405111b7ab8d006242062f54bcb65 | IG3: 3ab405111b7ab8d006242062f54bcb65 | IH3: 3eb405111b7ab8d006242062f54bcb65 | II3: 32b405111b7ab8d006242062f54bcb66 | IJ3: 36b405111b7ab8d006242062f54bcb66 | IK3: 3ab405111b7ab8d006242062f54bcb66 | IL3: 3eb405111b7ab8d006242062f54bcb66 | IM3: 32b405111b7ab8d006242062f54bcb67 | IN3: 36b405111b7ab8d006242062f54bcb67 | IO3: 3ab405111b7ab8d006242062f54bcb67 | IP3: 3eb405111b7ab8d006242062f54bcb67 | IQ3: 32b405111b7ab8d006242062f54bcb68 | IR3: 36b405111b7ab8d006242062f54bcb68 | IS3: 3ab405111b7ab8d006242062f54bcb68 | IT3: 3eb405111b7ab8d006242062f54bcb68 | IU3: 32b405111b7ab8d006242062f54bcb69 | IV3: 36b405111b7ab8d006242062f54bcb69 | IW3: 3ab405111b7ab8d006242062f54bcb69 | IX3: 3eb405111b7ab8d006242062f54bcb69 | IY3: 32b405111b7ab8d006242062f54bcb6a | IZ3: 36b405111b7ab8d006242062f54bcb6a | JA3: 3ab405111b7ab8d006242062f54bcb6a | JB3: 3eb405111b7ab8d006242062f54bcb6a | JC3: 32b405111b7ab8d006242062f54bcb6b | JD3: 36b405111b7ab8d006242062f54bcb6b | JE3: 3ab405111b7ab8d006242062f54bcb6b | JF3: 3eb405111b7ab8d006242062f54bcb6b | JG3: 32b405111b7ab8d006242062f54bcb6c | JH3: 36b405111b7ab8d006242062f54bcb6c | JI3: 3ab405111b7ab8d006242062f54bcb6c | JJ3: 3eb405111b7ab8d006242062f54bcb6c | JK3: 32b405111b7ab8d006242062f54bcb6d | JL3: 36b405111b7ab8d006242062f54bcb6d | JM3: 3ab405111b7ab8d006242062f54bcb6d | JN3: 3eb405111b7ab8d006242062f54bcb6d | JO3: 32b405111b7ab8d006242062f54bcb6e | JP3: 36b405111b7ab8d006242062f54bcb6e | JQ3: 3ab405111b7ab8d006242062f54bcb6e | JR3: 3eb405111b7ab8d006242062f54bcb6e | JS3: 32b405111b7ab8d006242062f54bcb6f | JT3: 36b405111b7ab8d006242062f54bcb6f | JU3: 3ab405111b7ab8d006242062f54bcb6f | JV3: 3eb405111b7ab8d006242062f54bcb6f | JW3: 32b405111b7ab8d006242062f54bcb70 | JX3: 36b405111b7ab8d006242062f54bcb70 | JY3: 3ab405111b7ab8d006242062f54bcb70 | JZ3: 3eb405111b7ab8d006242062f54bcb70 | KA3: 32b405111b7ab8d006242062f54bcb71 | KB3: 36b405111b7ab8d006242062f54bcb71 | KC3: 3ab405111b7ab8d006242062f54bcb71 | KD3: 3eb405111b7ab8d006242062f54bcb71 | KE3: 32b405111b7ab8d006242062f54bcb72 | KF3: 36b405111b7ab8d006242062f54bcb72 | KG3: 3ab405111b7ab8d006242062f54bcb72 | KH3: beb405111b7ab8d006242062f54bcb72 | KI3: 36b405111b7ab8d006242062f54bcb73 | KJ3: bab405111b7ab8d006242062f54bcb73 | KK3: 32b405111b7ab8d006242062f54bcb74 | KL3: b6b405111b7ab8d006242062f54bcb74 | KM3: 3eb405111b7ab8d006242062f54bcb74 | KN3: 76b405111b7ab8d006242062f54bcb75 | KO3: f2b405111b7ab8d006242062f54bcb76 | KP3: 7ab405111b7ab8d006242062f54bcb76 | KQ3: feb405111b7ab8d006242062f54bcb76 | KR3: 76b405111b7ab8d006242062f54bcb77 | KS3: fab405111b7ab8d006242062f54bcb77 | KT3: 72b405111b7ab8d006242062f54bcb78 | KU3: f6b405111b7ab8d006242062f54bcb78 | KV3: 7eb405111b7ab8d006242062f54bcb78 | KW3: f2b405111b7ab8d006242062f54bcb79 | KX3: 7ab405111b7ab8d006242062f54bcb79 | KY3: feb405111b7ab8d006242062f54bcb79 | KZ3: 76b405111b7ab8d006242062f54bcb7a | LA3: fab405111b7ab8d006242062f54bcb7a | LB3: 72b405111b7ab8d006242062f54bcb7b | LC3: f6b405111b7ab8d006242062f54bcb7b | LD3: 7eb405111b7ab8d006242062f54bcb7b | LE3: f2b405111b7ab8d006242062f54bcb7c | LF3: 7ab405111b7ab8d006242062f54bcb7c | LG3: feb405111b7ab8d006242062f54bcb7c | LH3: 76b405111b7ab8d006242062f54bcb7d | LI3: fab405111b7ab8d006242062f54bcb7d | LJ3: 72b405111b7ab8d006242062f54bcb7e | LK3: f6b405111b7ab8d006242062f54bcb7e | LL3: 7eb405111b7ab8d006242062f54bcb7e | LM3: f2b405111b7ab8d006242062f54bcb7f | LN3: 7ab405111b7ab8d006242062f54bcb7f | LO3: 7eb405111b7ab8d006242062f54bcb7f | LP3: 72b405111b7ab8d006242062f54bcb80 | LQ3: 76b405111b7ab8d006242062f54bcb80 | LR3: 7ab405111b7ab8d006242062f54bcb80 | LS3: 7eb405111b7ab8d006242062f54bcb80 | LT3: 72b405111b7ab8d006242062f54bcb81 | LU3: 76b405111b7ab8d006242062f54bcb81 | LV3: 7ab405111b7ab8d006242062f54bcb81 | LW3: 7eb405111b7ab8d006242062f54bcb81 | LX3: 72b405111b7ab8d006242062f54bcb82 | LY3: 76b405111b7ab8d006242062f54bcb82 | LZ3: 7ab405111b7ab8d006242062f54bcb82 | MA3: 7eb405111b7ab8d006242062f54bcb82 | MB3: 72b405111b7ab8d006242062f54bcb83 | MC3: 76b405111b7ab8d006242062f54bcb83 | MD3: 7ab405111b7ab8d006242062f54bcb83 | ME3: 7eb405111b7ab8d006242062f54bcb83 | MF3: 72b405111b7ab8d006242062f54bcb84 | MG3: 76b405111b7ab8d006242062f54bcb84 | MH3: 7ab405111b7ab8d006242062f54bcb84 | MI3: 7eb405111b7ab8d006242062f54bcb84 | MJ3: 72b405111b7ab8d006242062f54bcb85 | MK3: 76b405111b7ab8d006242062f54bcb85 | ML3: 7ab405111b7ab8d006242062f54bcb85 | MM3: 7eb405111b7ab8d006242062f54bcb85 | MN3: 72b405111b7ab8d006242062f54bcb86 | MO3: 76b405111b7ab8d006242062f54bcb86 | MP3: 7ab405111b7ab8d006242062f54bcb86 | MQ3: 7eb405111b7ab8d006242062f54bcb86 | MR3: 72b405111b7ab8d006242062f54bcb87 | MS3: 76b405111b7ab8d006242062f54bcb87 | MT3: 7ab405111b7ab8d006242062f54bcb87 | MU3: 7eb405111b7ab8d006242062f54bcb87 | MV3: 72b405111b7ab8d006242062f54bcb88 | MW3: 76b405111b7ab8d006242062f54bcb88 | MX3: 7ab405111b7ab8d006242062f54bcb88 | MY3: 7eb405111b7ab8d006242062f54bcb88 | MZ3: 72b405111b7ab8d006242062f54bcb89 | NA3: 76b405111b7ab8d006242062f54bcb89 | NB3: 7ab405111b7ab8d006242062f54bcb89 | NC3: 7eb405111b7ab8d006242062f54bcb89 | ND3: 72b405111b7ab8d006242062f54bcb8a | NE3: 76b405111b7ab8d006242062f54bcb8a | NF3: 7ab405111b7ab8d006242062f54bcb8a | NG3: 7eb405111b7ab8d006242062f54bcb8a | NH3: 72b405111b7ab8d006242062f54bcb8b | NI3: 76b405111b7ab8d006242062f54bcb8b | NJ3: 7ab405111b7ab8d006242062f54bcb8b | NK3: 7eb405111b7ab8d006242062f54bcb8b | NL3: 72b405111b7ab8d006242062f54bcb8c | NM3: 76b405111b7ab8d006242062f54bcb8c | NN3: 7ab405111b7ab8d006242062f54bcb8c | NO3: 7eb405111b7ab8d006242062f54bcb8c | NP3: 72b405111b7ab8d006242062f54bcb8d | NQ3: 76b405111b7ab8d006242062f54bcb8d | NR3: 7ab405111b7ab8d006242062f54bcb8d | NS3: 7eb405111b7ab8d006242062f54bcb8d | NT3: 72b405111b7ab8d006242062f54bcb8e | NU3: 76b405111b7ab8d006242062f54bcb8e | NV3: 7ab405111b7ab8d006242062f54bcb8e | NW3: 7eb405111b7ab8d006242062f54bcb8e | NX3: 72b405111b7ab8d006242062f54bcb8f | NY3: 76b405111b7ab8d006242062f54bcb8f | NZ3: 7ab405111b7ab8d006242062f54bcb8f | OA3: 7eb405111b7ab8d006242062f54bcb8f | OB3: f2b405111b7ab8d006242062f54bcb90 | OC3: 7ab405111b7ab8d006242062f54bcb90 | OD3: feb405111b7ab8d006242062f54bcb90 | OE3: f2b405111b7ab8d006242062f54bcb91 | OF3: f6b405111b7ab8d006242062f54bcb91 | OG3: fab405111b7ab8d006242062f54bcb91 | OH3: feb405111b7ab8d006242062f54bcb91 | OI3: f2b405111b7ab8d006242062f54bcb92 | OJ3: bab405111b7ab8d006242062f54bcb92 | OK3: b6b405111b7ab8d006242062f54bcb93 | OL3: bab405111b7ab8d006242062f54bcb93 | OM3: beb405111b7ab8d006242062f54bcb93 | ON3: b2b405111b7ab8d006242062f54bcb94 | OO3: b6b405111b7ab8d006242062f54bcb94 | OP3: bab405111b7ab8d006242062f54bcb94 | OQ3: beb405111b7ab8d006242062f54bcb94 | OR3: b2b405111b7ab8d006242062f54bcb95 | OS3: b6b405111b7ab8d006242062f54bcb95 | OT3: bab405111b7ab8d006242062f54bcb95 | OU3: beb405111b7ab8d006242062f54bcb95 | OV3: b2b405111b7ab8d006242062f54bcb96 | OW3: b6b405111b7ab8d006242062f54bcb96 | OX3: bab405111b7ab8d006242062f54bcb96 | OY3: beb405111b7ab8d006242062f54bcb96 | OZ3: 83b405111b7ab8d006242062f54bcb97 | PA3: 87b405111b7ab8d006242062f54bcb97 | PB3: 0fb405111b7ab8d006242062f54bcb97 | PC3: 83b405111b7ab8d006242062f54bcb98 | PD3: 0bb405111b7ab8d006242062f54bcb98 | PE3: 8fb405111b7ab8d006242062f54bcb98 | PF3: 83b405111b7ab8d006242062f54bcb99 | PG3: 87b405111b7ab8d006242062f54bcb99 | PH3: 8bb405111b7ab8d006242062f54bcb99 | PI3: 8fb405111b7ab8d006242062f54bcb99 | PJ3: 83b405111b7ab8d006242062f54bcb9a | PK3: 87b405111b7ab8d006242062f54bcb9a | PL3: 0fb405111b7ab8d006242062f54bcb9a | PM3: 83b405111b7ab8d006242062f54bcb9b | PN3: 0bb405111b7ab8d006242062f54bcb9b | PO3: 8fb405111b7ab8d006242062f54bcb9b | PP3: 07b405111b7ab8d006242062f54bcb9c | PQ3: 8bb405111b7ab8d006242062f54bcb9c | PR3: 03b405111b7ab8d006242062f54bcb9d | PS3: 87b405111b7ab8d006242062f54bcb9d | PT3: 8bb405111b7ab8d006242062f54bcb9d | PU3: 8fb405111b7ab8d006242062f54bcb9d | PV3: 83b405111b7ab8d006242062f54bcb9e | PW3: 87b405111b7ab8d006242062f54bcb9e | PX3: 8bb405111b7ab8d006242062f54bcb9e | PY3: 8fb405111b7ab8d006242062f54bcb9e | PZ3: 83b405111b7ab8d006242062f54bcb9f | QA3: 87b405111b7ab8d006242062f54bcb9f | QB3: 8bb405111b7ab8d006242062f54bcb9f | QC3: 8fb405111b7ab8d006242062f54bcb9f | QD3: 83b405111b7ab8d006242062f54bcba0 | QE3: 87b405111b7ab8d006242062f54bcba0 | QF3: 8bb405111b7ab8d006242062f54bcba0 | QG3: 8fb405111b7ab8d006242062f54bcba0 | QH3: 83b405111b7ab8d006242062f54bcba1 | QI3: 87b405111b7ab8d006242062f54bcba1 | QJ3: 8bb405111b7ab8d006242062f54bcba1 | QK3: 8fb405111b7ab8d006242062f54bcba1 | QL3: 83b405111b7ab8d006242062f54bcba2 | QM3: 87b405111b7ab8d006242062f54bcba2 | QN3: 8bb405111b7ab8d006242062f54bcba2 | QO3: 8fb405111b7ab8d006242062f54bcba2 | QP3: 07b405111b7ab8d006242062f54bcba3 | QQ3: 8bb405111b7ab8d006242062f54bcba3 | QR3: 03b405111b7ab8d006242062f54bcba4 | QS3: 87b405111b7ab8d006242062f54bcba4 | QT3: 0fb405111b7ab8d006242062f54bcba4 | QU3: 83b405111b7ab8d006242062f54bcba5 | QV3: 0bb405111b7ab8d006242062f54bcba5 | QW3: 0fb405111b7ab8d006242062f54bcba5 | QX3: 03b405111b7ab8d006242062f54bcba6 | QY3: 07b405111b7ab8d006242062f54bcba6 | QZ3: 0bb405111b7ab8d006242062f54bcba6 | RA3: 0fb405111b7ab8d006242062f54bcba6 | RB3: 03b405111b7ab8d006242062f54bcba7 | RC3: 07b405111b7ab8d006242062f54bcba7 | RD3: 0bb405111b7ab8d006242062f54bcba7 | RE3: 0fb405111b7ab8d006242062f54bcba7 | RF3: 03b405111b7ab8d006242062f54bcba8 | RG3: 07b405111b7ab8d006242062f54bcba8 | RH3: 0bb405111b7ab8d006242062f54bcba8 | RI3: 0fb405111b7ab8d006242062f54bcba8 | RJ3: 03b405111b7ab8d006242062f54bcba9 | RK3: 07b405111b7ab8d006242062f54bcba9 | RL3: 0bb405111b7ab8d006242062f54bcba9 | RM3: 0fb405111b7ab8d006242062f54bcba9 | RN3: 03b405111b7ab8d006242062f54bcbaa | RO3: 07b405111b7ab8d006242062f54bcbaa | RP3: 0bb405111b7ab8d006242062f54bcbaa | RQ3: 0fb405111b7ab8d006242062f54bcbaa | RR3: 03b405111b7ab8d006242062f54bcbab | RS3: 07b405111b7ab8d006242062f54bcbab | RT3: 0bb405111b7ab8d006242062f54bcbab | RU3: 0fb405111b7ab8d006242062f54bcbab | RV3: 03b405111b7ab8d006242062f54bcbac | RW3: 07b405111b7ab8d006242062f54bcbac | RX3: 0bb405111b7ab8d006242062f54bcbac | RY3: 0fb405111b7ab8d006242062f54bcbac | RZ3: 03b405111b7ab8d006242062f54bcbad | SA3: 07b405111b7ab8d006242062f54bcbad | SB3: 0bb405111b7ab8d006242062f54bcbad | SC3: 0fb405111b7ab8d006242062f54bcbad | SD3: 03b405111b7ab8d006242062f54bcbae | SE3: 07b405111b7ab8d006242062f54bcbae | SF3: cbb405111b7ab8d006242062f54bcbae | SG3: c7b405111b7ab8d006242062f54bcbaf | SH3: cbb405111b7ab8d006242062f54bcbaf | SI3: cfb405111b7ab8d006242062f54bcbaf | SJ3: 47b405111b7ab8d006242062f54bcbb0 | SK3: 4bb405111b7ab8d006242062f54bcbb0 | SL3: 4fb405111b7ab8d006242062f54bcbb0 | SM3: 43b405111b7ab8d006242062f54bcbb1 | SN3: 47b405111b7ab8d006242062f54bcbb1 | SO3: 4bb405111b7ab8d006242062f54bcbb1 | SP3: cfb405111b7ab8d006242062f54bcbb1 | SQ3: 47b405111b7ab8d006242062f54bcbb2 | SR3: cbb405111b7ab8d006242062f54bcbb2 | SS3: 43b405111b7ab8d006242062f54bcbb3 | ST3: c7b405111b7ab8d006242062f54bcbb3 | SU3: 4fb405111b7ab8d006242062f54bcbb3 | SV3: c3b405111b7ab8d006242062f54bcbb4 | SW3: 4bb405111b7ab8d006242062f54bcbb4 | SX3: cfb405111b7ab8d006242062f54bcbb4 | SY3: 47b405111b7ab8d006242062f54bcbb5 | SZ3: cbb405111b7ab8d006242062f54bcbb5 | TA3: 43b405111b7ab8d006242062f54bcbb6 | TB3: c7b405111b7ab8d006242062f54bcbb6 | TC3: 4fb405111b7ab8d006242062f54bcbb6 | TD3: c3b405111b7ab8d006242062f54bcbb7 | TE3: 4bb405111b7ab8d006242062f54bcbb7 | TF3: cfb405111b7ab8d006242062f54bcbb7 | TG3: 47b405111b7ab8d006242062f54bcbb8 | TH3: cbb405111b7ab8d006242062f54bcbb8 | TI3: 43b405111b7ab8d006242062f54bcbb9 | TJ3: c7b405111b7ab8d006242062f54bcbb9
B1071: =(#REF!+#REF!)/2 -> 

Sheet Catalog Item (hidden)
A1: Average Estimate Cost | B1: Cost Category | C1: Cost Subcategory | D1: Description | E1: High Range Estimate Cost | F1: Index | G1: Low Range Estimate Cost | H1: sys_id
A2: =(E2+G2)/2 -> 20100 | B2: Access Layer | C2: Optical line terminal equipment (OLT) | E2: 39000 | F2: 1.1.0 | G2: 1200 | H2: e6b4c1111b7ab8d006242062f54bcb96
A3: =(E3+G3)/2 -> 61727 | B3: Access Layer | C3: Access WDM (Wavelength Division Multiplexing) & OTN (Optical Transport Network) | E3: 120000 | F3: 1.2.1 | G3: 3454 | H3: aab4c1111b7ab8d006242062f54bcb97
A4: 197500 | B4: Access Layer | C4: Access WDM (Wavelength Division Multiplexing) & OTN (Optical Transport Network) | E4: 330000 | F4: 1.2.2 | G4: 65000 | H4: 22b4c1111b7ab8d006242062f54bcb98
A5: 262.5 | B5: Access Layer | C5: End-User Termination Point - FTTH | E5: 425 | F5: 1.3.1 | G5: 100 | H5: 26b4c1111b7ab8d006242062f54bcb98
A6: 402.5 | B6: Access Layer | C6: End-User Termination Point - FTTH | E6: 535 | F6: 1.3.2 | G6: 270 | H6: 2ab4c1111b7ab8d006242062f54bcb98
A7: 15297.5 | B7: Access Layer | C7: End-User Termination Point - FTTH | E7: 30000 | F7: 1.3.3 | G7: 595 | H7: 2eb4c1111b7ab8d006242062f54bcb98
A8: 15700 | B8: Access Layer | C8: End-User Termination Point - FTTH | E8: 25000 | F8: 1.3.4 | G8: 6400 | H8: 22b4c1111b7ab8d006242062f54bcb99
A9: 8146.56 | B9: Access Layer | C9: Ethernet Service Access Node (ESAN) (includes outdoor cabinet & install) | E9: 8146.56 | F9: 1.5.0 | G9: 8146.56 | H9: a6b4c1111b7ab8d006242062f54bcb99
A10: 40750 | B10: Access Layer | C10: LAN MDUs | E10: 79000 | F10: 1.6.1 | G10: 2500 | H10: aab4c1111b7ab8d006242062f54bcb99
A11: 78500 | B11: Access Layer | C11: LAN MDUs | E11: 117000 | F11: 1.6.2 | G11: 40000 | H11: 26b405111b7ab8d006242062f54bcb16
A12: 177500 | B12: Access Layer | C12: LAN MDUs | E12: 240000 | F12: 1.6.3 | G12: 115000 | H12: 2ab405111b7ab8d006242062f54bcb16
A13: 287.5 | B13: Access Layer | C13: Home network and customer premises equipment (CPE) | E13: 375 | F13: 1.7.1 | G13: 200 | H13: aeb405111b7ab8d006242062f54bcb16
A14: 230 | B14: Access Layer | C14: Home network and customer premises equipment (CPE) | E14: 260 | F14: 1.7.2 | G14: 200 | H14: 26b405111b7ab8d006242062f54bcb17
A15: 93 | B15: Access Layer | C15: Home network and customer premises equipment (CPE) | E15: 124 | F15: 1.7.3 | G15: 62 | H15: aab405111b7ab8d006242062f54bcb17
A16: 1500 | B16: Access Layer | C16: Customer Outreach to End-User - Public Relations/Notification | E16: 2000 | F16: 1.8.1 | G16: 1000 | H16: 22b405111b7ab8d006242062f54bcb18
A17: 189 | B17: Access Layer | C17: Cable coaxial media converters | E17: 289 | F17: 1.9.0 | G17: 89 | H17: 26b405111b7ab8d006242062f54bcb18
A18: 12250 | B18: Access Layer | C18: Cable coaxial media converters | E18: 16000 | F18: 1.9.1 | G18: 8500 | H18: 2ab405111b7ab8d006242062f54bcb18
A19: 1547.5 | B19: Access Layer | C19: WLAN (Wireless Local Area Network) | E19: 2300 | F19: 1.10.1 | G19: 795 | H19: 2eb405111b7ab8d006242062f54bcb18
A20: 3112.5 | B20: Access Layer | C20: WLAN (Wireless Local Area Network) | E20: 3825 | F20: 1.10.2 | G20: 2400 | H20: 22b405111b7ab8d006242062f54bcb19
A21: 6502.5 | B21: Access Layer | C21: Site Cabinets - Optical Network Units (ONU) | E21: 7225 | F21: 1.11.0 | G21: 5780 | H21: a6b405111b7ab8d006242062f54bcb19
A22: 41808 | B22: Access Layer | C22: Site Cabinets - Optical Network Units (ONU) | E22: 61116 | F22: 1.11.1 | G22: 22500 | H22: 2eb405111b7ab8d006242062f54bcb19
A23: 26250 | B23: Access Layer | C23: Site Cabinets - Optical Network Units (ONU) | E23: 34000 | F23: 1.11.2 | G23: 18500 | H23: a2b405111b7ab8d006242062f54bcb1a
A24: 5772.5 | B24: Distribution Layer | C24: Routers | E24: 10750 | F24: 2.1.1 | G24: 795 | H24: a6b405111b7ab8d006242062f54bcb1a
A25: 10558 | B25: Distribution Layer | C25: Routers | E25: 19500 | F25: 2.1.2 | G25: 1616 | H25: aab405111b7ab8d006242062f54bcb1a
A26: 8033 | B26: Distribution Layer | C26: Routers | E26: 13068 | F26: 2.1.3 | G26: 2998 | H26: aeb405111b7ab8d006242062f54bcb1a
A27: 6591 | B27: Distribution Layer | C27: Routers | E27: 12000 | F27: 2.1.4 | G27: 1182 | H27: a2b405111b7ab8d006242062f54bcb1b
A28: 12247.5 | B28: Distribution Layer | C28: Routers | E28: 19995 | F28: 2.1.5 | G28: 4500 | H28: a6b405111b7ab8d006242062f54bcb1b
A29: 93750 | B29: Distribution Layer | C29: Routers | E29: 170000 | F29: 2.1.6 | G29: 17500 | H29: aab405111b7ab8d006242062f54bcb1b
A30: 120732.5 | B30: Distribution Layer | C30: Switches | E30: 239270 | F30: 2.2.1 | G30: 2195 | H30: aeb405111b7ab8d006242062f54bcb1b
A31: 358903.5 | B31: Distribution Layer | C31: Switches | E31: 478537 | F31: 2.2.2 | G31: 239270 | H31: a2b405111b7ab8d006242062f54bcb1c
A32: 599268.5 | B32: Distribution Layer | C32: Switches | E32: 720000 | F32: 2.2.3 | G32: 478537 | H32: a6b405111b7ab8d006242062f54bcb1c
A33: 154400 | B33: Distribution Layer | C33: Switches | E33: 270600 | F33: 2.2.4 | G33: 38200 | H33: aab405111b7ab8d006242062f54bcb1c
A34: 405900 | B34: Distribution Layer | C34: Switches | E34: 541200 | F34: 2.2.5 | G34: 270600 | H34: aeb405111b7ab8d006242062f54bcb1c
A35: 695600 | B35: Distribution Layer | C35: Switches | E35: 850000 | F35: 2.2.6 | G35: 541200 | H35: a2b405111b7ab8d006242062f54bcb1d
A36: 102550 | B36: Distribution Layer | C36: FTTH (Fiber To The Home) - GPON (Gigabyte Passive Optical Network) / XGS (10-Gigabit-capable symmetric passive optical network) | E36: 190100 | F36: 2.3.1 | G36: 15000 | H36: 2ab405111b7ab8d006242062f54bcb1d
A37: 50427.5 | B37: Distribution Layer | C37: FTTH (Fiber To The Home) - GPON (Gigabyte Passive Optical Network) / XGS (10-Gigabit-capable symmetric passive optical network) | E37: 80855 | F37: 2.3.2 | G37: 20000 | H37: aeb405111b7ab8d006242062f54bcb1d
A38: 33842.5 | B38: Distribution Layer | C38: FTTH (Fiber To The Home) - GPON (Gigabyte Passive Optical Network) / XGS (10-Gigabit-capable symmetric passive optical network) | E38: 39635 | F38: 2.3.3 | G38: 28050 | H38: 26b405111b7ab8d006242062f54bcb1e
A39: 23140 | B39: Distribution Layer | C39: VDSL (Very high-speed Digital Subscriber Line) Access Network | E39: 26475 | F39: 2.4.1 | G39: 19805 | H39: aab405111b7ab8d006242062f54bcb1e
A40: 363500 | B40: Distribution Layer | C40: Cell Edge Aggregation | E40: 415000 | F40: 2.5.1 | G40: 312000 | H40: aeb405111b7ab8d006242062f54bcb1e
A41: 525000 | B41: Distribution Layer | C41: Cell Edge Aggregation | E41: 600000 | F41: 2.5.2 | G41: 450000 | H41: a2b405111b7ab8d006242062f54bcb1f
A42: 731500 | B42: Distribution Layer | C42: Cell Edge Aggregation | E42: 835000 | F42: 2.5.3 | G42: 628000 | H42: a6b405111b7ab8d006242062f54bcb1f
A43: 17333.5 | B43: Distribution Layer | C43: Network security equipment | E43: 33667 | F43: 2.6.1 | G43: 1000 | H43: aab405111b7ab8d006242062f54bcb1f
A44: 91833.5 | B44: Distribution Layer | C44: Network security equipment | E44: 150000 | F44: 2.6.2 | G44: 33667 | H44: aeb405111b7ab8d006242062f54bcb1f
A45: 283666.5 | B45: Distribution Layer | C45: Network security equipment | E45: 500000 | F45: 2.6.3 | G45: 67333 | H45: a2b405111b7ab8d006242062f54bcb20
A46: 92500 | B46: Distribution Layer | C46: Distribution WDM & OTN | E46: 102000 | F46: 2.7.1 | G46: 83000 | H46: a6b405111b7ab8d006242062f54bcb20
A47: 247500 | B47: Distribution Layer | C47: Distribution WDM & OTN | E47: 330000 | F47: 2.7.2 | G47: 165000 | H47: aab405111b7ab8d006242062f54bcb20
A48: 21380 | B48: Distribution Layer | C48: Microwave PTP (point to point links) | E48: 36200 | F48: 2.8.1 | G48: 6560 | H48: aeb405111b7ab8d006242062f54bcb20
A49: 30500.5 | B49: Distribution Layer | C49: Microwave PTP (point to point links) | E49: 53674 | F49: 2.8.2 | G49: 7327 | H49: a2b405111b7ab8d006242062f54bcb21
A50: 33492 | B50: Distribution Layer | C50: Microwave PTP (point to point links) | E50: 56666 | F50: 2.8.3 | G50: 10318 | H50: a6b405111b7ab8d006242062f54bcb21
A51: 39216.5 | B51: Distribution Layer | C51: Microwave PTP (point to point links) | E51: 62390 | F51: 2.8.4 | G51: 16043 | H51: aab405111b7ab8d006242062f54bcb21
A52: 13350 | B52: Distribution Layer | C52: Microwave PTP (point to point links) | E52: 16000 | F52: 2.8.5 | G52: 10700 | H52: aeb405111b7ab8d006242062f54bcb21
A53: 30250 | B53: Distribution Layer | C53: Microwave PTP (point to point links) | E53: 36300 | F53: 2.8.6 | G53: 24200 | H53: a2b405111b7ab8d006242062f54bcb22
A54: 13350 | B54: Distribution Layer | C54: Microwave PTP (point to point links) | E54: 16000 | F54: 2.8.7 | G54: 10700 | H54: a6b405111b7ab8d006242062f54bcb22
A55: 30250 | B55: Distribution Layer | C55: Microwave PTP (point to point links) | E55: 36300 | F55: 2.8.8 | G55: 24200 | H55: aab405111b7ab8d006242062f54bcb22
A56: 12000 | B56: Distribution Layer | C56: Microwave PTP (point to point links) | E56: 14400 | F56: 2.8.9 | G56: 9600 | H56: aeb405111b7ab8d006242062f54bcb22
A57: 7000 | B57: Distribution Layer | C57: Microwave PTP (point to point links) | E57: 8500 | F57: 2.8.10 | G57: 5500 | H57: a2b405111b7ab8d006242062f54bcb23
A58: 7450 | B58: Distribution Layer | C58: Microwave PTMP (point to multipoint) | E58: 11500 | F58: 2.9.1 | G58: 3400 | H58: a6b405111b7ab8d006242062f54bcb23
A59: 2807 | B59: Distribution Layer | C59: Microwave PTMP (point to multipoint) | E59: 4000 | F59: 2.9.2 | G59: 1614 | H59: aab405111b7ab8d006242062f54bcb23
A60: 2900.5 | B60: Distribution Layer | C60: Microwave PTMP (point to multipoint) | E60: 4100 | F60: 2.9.3 | G60: 1701 | H60: aeb405111b7ab8d006242062f54bcb23
A61: 2769.5 | B61: Distribution Layer | C61: Microwave PTMP (point to multipoint) | E61: 4100 | F61: 2.9.4 | G61: 1439 | H61: a2b405111b7ab8d006242062f54bcb24
A62: 1137.5 | B62: Distribution Layer | C62: Microwave Antennas - Single Pole | E62: 1850 | F62: 2.10.1 | G62: 425 | H62: a6b405111b7ab8d006242062f54bcb24
A63: 3071.75 | B63: Distribution Layer | C63: Microwave Antennas - Single Pole | E63: 3668.5 | F63: 2.10.2 | G63: 2475 | H63: aab405111b7ab8d006242062f54bcb24
A64: 1200.85 | B64: Distribution Layer | C64: Microwave Antennas - Dual Polarization | E64: 1976.7 | F64: 2.11.1 | G64: 425 | H64: aeb405111b7ab8d006242062f54bcb24
A65: 3484 | B65: Distribution Layer | C65: Microwave Antennas - Dual Polarization | E65: 4268 | F65: 2.11.2 | G65: 2700 | H65: a2b405111b7ab8d006242062f54bcb25
A66: 4370 | B66: Distribution Layer | C66: Microwave Antennas - Dual Polarization – Ultra High Performance | E66: 5250 | F66: 2.12.1 | G66: 3490 | H66: 2ab405111b7ab8d006242062f54bcb25
A67: =(E67+G67)/2 -> 18625 | B67: Distribution Layer | C67: Microwave Antennas - Dual Polarization – Ultra High Performance | E67: 30000 | F67: 2.12.2 | G67: 7250 | H67: aeb405111b7ab8d006242062f54bcb25
A68: 4280 | B68: Distribution Layer | C68: Microwave Antennas - mmWave Flat Panel | E68: 4708 | F68: 2.13.1 | G68: 3852 | H68: a2b405111b7ab8d006242062f54bcb26
A69: 1040 | B69: Distribution Layer | C69: Microwave Antennas - mmWave Flat Panel | E69: 1650 | F69: 2.13.2 | G69: 430 | H69: a6b405111b7ab8d006242062f54bcb26
A70: 1725 | B70: Distribution Layer | C70: Microwave Antennas - mmWave Flat Panel | E70: 2050 | F70: 2.13.3 | G70: 1400 | H70: aab405111b7ab8d006242062f54bcb26
A71: 3497 | B71: Distribution Layer | C71: Antenna - LTE (Long Term Evolution) Multi-band, >16dBi | E71: 6450 | F71: 2.14.1 | G71: 544 | H71: 22b405111b7ab8d006242062f54bcb27
A72: 6236.75 | B72: Distribution Layer | C72: Antenna - LTE (Long Term Evolution) Multi-band, >16dBi | E72: 10994.5 | F72: 2.14.2 | G72: 1479 | H72: a6b405111b7ab8d006242062f54bcb27
A73: 7125.25 | B73: Distribution Layer | C73: Antenna - LTE & CBRS (Citizens Broadband Radio Service), >16dBi | E73: 9795.5 | F73: 2.15.1 | G73: 4455 | H73: 2eb405111b7ab8d006242062f54bcb27
A74: 3060.25 | B74: Distribution Layer | C74: Antenna - CBRS only | E74: 5225 | F74: 2.16.1 | G74: 895.5 | H74: 22b405111b7ab8d006242062f54bcb28
A75: 2043.5 | B75: Distribution Layer | C75: Hybrid Cable & Radio/Antenna Jumpers, Tower Ancillary Components | E75: 2560 | F75: 2.17.1 | G75: 1527 | H75: a6b405111b7ab8d006242062f54bcb28
A76: 2246.5 | B76: Distribution Layer | C76: Hybrid Cable & Radio/Antenna Jumpers, Tower Ancillary Components | E76: 2800 | F76: 2.17.2 | G76: 1693 | H76: 2eb405111b7ab8d006242062f54bcb28
A77: 4556.5 | B77: Distribution Layer | C77: Hybrid Cable & Radio/Antenna Jumpers, Tower Ancillary Components | E77: 7200 | F77: 2.17.3 | G77: 1913 | H77: a2b405111b7ab8d006242062f54bcb29
A78: 7349.5 | B78: Distribution Layer | C78: Hybrid Cable & Radio/Antenna Jumpers, Tower Ancillary Components | E78: 10000 | F78: 2.17.4 | G78: 4699 | H78: 2ab405111b7ab8d006242062f54bcb29
A79: 2750 | B79: Distribution Layer | C79: Hybrid Cable & Radio/Antenna Jumpers, Tower Ancillary Components | E79: 4000 | F79: 2.17.5 | G79: 1500 | H79: aeb405111b7ab8d006242062f54bcb29
A80: 570 | B80: Distribution Layer | C80: Hybrid Cable & Radio/Antenna Jumpers, Tower Ancillary Components | E80: 950 | F80: 2.17.6 | G80: 190 | H80: 26b405111b7ab8d006242062f54bcb2a
A81: 38450 | B81: Distribution Layer | C81: LAN MDUs (Local Area Network Multi-Dwelling Units) | E81: 75000 | F81: 2.18.1 | G81: 1900 | H81: aab405111b7ab8d006242062f54bcb2a
A82: 109683 | B82: Distribution Layer | C82: LAN MDUs (Local Area Network Multi-Dwelling Units) | E82: 150000 | F82: 2.18.2 | G82: 69366 | H82: 22b405111b7ab8d006242062f54bcb2b
A83: 194850 | B83: Distribution Layer | C83: LAN MDUs (Local Area Network Multi-Dwelling Units) | E83: 250000 | F83: 2.18.3 | G83: 139700 | H83: a6b405111b7ab8d006242062f54bcb2b
A84: 18500 | B84: Distribution Layer | C84: Bearer - 5G Transport connects all categories of the mobile network infrastructure, including fronthaul, midhaul, and backhaul | E84: 20000 | F84: 2.19.1 | G84: 17000 | H84: 2eb405111b7ab8d006242062f54bcb2b
A85: 28500 | B85: Distribution Layer | C85: Bearer - 5G Transport connects all categories of the mobile network infrastructure, including fronthaul, midhaul, and backhaul | E85: 34000 | F85: 2.19.2 | G85: 23000 | H85: a2b405111b7ab8d006242062f54bcb2c
A86: 9436 | B86: Distribution Layer | C86: LTE FDD (Frequency Division Duplex) | E86: 14872 | F86: 2.21.1 | G86: 4000 | H86: a6b405111b7ab8d006242062f54bcb2c
A87: 17010.5 | B87: Distribution Layer | C87: LTE FDD (Frequency Division Duplex) | E87: 22496 | F87: 2.21.2 | G87: 11525 | H87: aab405111b7ab8d006242062f54bcb2c
A88: 3726.5 | B88: Distribution Layer | C88: LTE FDD (Frequency Division Duplex) | E88: 5844 | F88: 2.21.3 | G88: 1609 | H88: aeb405111b7ab8d006242062f54bcb2c
A89: 4789.5 | B89: Distribution Layer | C89: LTE FDD (Frequency Division Duplex) | E89: 7844 | F89: 2.21.4 | G89: 1735 | H89: a2b405111b7ab8d006242062f54bcb2d
A90: 12921 | B90: Distribution Layer | C90: LTE TDD (Time Division Duplex) | E90: 21842 | F90: 2.22.1 | G90: 4000 | H90: a6b405111b7ab8d006242062f54bcb2d
A91: 24917.5 | B91: Distribution Layer | C91: LTE TDD (Time Division Duplex) | E91: 28517 | F91: 2.22.2 | G91: 21318 | H91: aab405111b7ab8d006242062f54bcb2d
A92: 8000 | B92: Distribution Layer | C92: LTE TDD (Time Division Duplex) | E92: 13000 | F92: 2.22.3 | G92: 3000 | H92: aeb405111b7ab8d006242062f54bcb2d
A93: 31117 | B93: Distribution Layer | C93: LTE BBU (Baseband Units) | E93: 54773 | F93: 2.23.1 | G93: 7461 | H93: a2b405111b7ab8d006242062f54bcb2e
A94: 616098 | B94: Distribution Layer | C94: LTE BBU (Baseband Units) | E94: 840918 | F94: 2.23.2 | G94: 391278 | H94: a6b405111b7ab8d006242062f54bcb2e
A95: 955582 | B95: Distribution Layer | C95: LTE BBU (Baseband Units) | E95: 1070246 | F95: 2.23.3 | G95: 840918 | H95: aab405111b7ab8d006242062f54bcb2e
A96: 1672552.5 | B96: Distribution Layer | C96: LTE BBU (Baseband Units) | E96: 2274859 | F96: 2.23.4 | G96: 1070246 | H96: aeb405111b7ab8d006242062f54bcb2e
A97: 17021 | B97: Distribution Layer | C97: 1 Sector Bundle - 10/20MHz channels - RU (Radio Unit), CDU (Cabinet Distributed Unit), shelf, cables, SFP's, and antennas | E97: 17504 | F97: 2.24.1 | G97: 16538 | H97: 26b405111b7ab8d006242062f54bcb2f
A98: 29602 | B98: Distribution Layer | C98: 1 Sector Bundle - 10/20MHz channels - RU (Radio Unit), CDU (Cabinet Distributed Unit), shelf, cables, SFP's, and antennas | E98: 30412 | F98: 2.24.2 | G98: 28792 | H98: aab405111b7ab8d006242062f54bcb2f
A99: 17021 | B99: Distribution Layer | C99: 1 Sector Bundle - 40MHz channels - RU, CDU, DU shelf, cables, SFP's, and antennas | E99: 17504 | F99: 2.25.1 | G99: 16538 | H99: 22b405111b7ab8d006242062f54bcb30
A100: 35340 | B100: Distribution Layer | C100: 1 Sector Bundle - 40MHz channels - RU, CDU, DU shelf, cables, SFP's, and antennas | E100: 36315 | F100: 2.25.2 | G100: 34365 | H100: a6b405111b7ab8d006242062f54bcb30
A101: 17297.5 | B101: Distribution Layer | C101: 1 Sector Bundle - 60MHz channels - RU, CDU, DU shelf, cables, SFP's, and antennas | E101: 17788 | F101: 2.26.1 | G101: 16807 | H101: 22b405111b7ab8d006242062f54bcb31
A102: 41078.5 | B102: Distribution Layer | C102: 1 Sector Bundle - 60MHz channels - RU, CDU, DU shelf, cables, SFP's, and antennas | E102: 42217 | F102: 2.26.2 | G102: 39940 | H102: a6b405111b7ab8d006242062f54bcb32
A103: 4989.5 | B103: Distribution Layer | C103: 1 Sector Bundle - 60MHz channels - RU, CDU, DU shelf, cables, SFP's, and antennas | E103: 5137 | F103: 2.26.3 | G103: 4842 | H103: 2eb405111b7ab8d006242062f54bcb32
A104: 16432.5 | B104: Distribution Layer | C104: 1 Sector Bundle - 60MHz channels - RU, CDU, DU shelf, cables, SFP's, and antennas | E104: 16902 | F104: 2.26.4 | G104: 15963 | H104: a2b405111b7ab8d006242062f54bcb33
A105: 1100000 | B105: Distribution Layer | C105: Rapid Deployed, Self-contained 5G cell site with attached Core | E105: 1400000 | F105: 2.27.1 | G105: 800000 | H105: 2ab405111b7ab8d006242062f54bcb33
A106: 649500 | B106: Distribution Layer | C106: Rapid Deployed, Self-contained 5G cell site with attached Core | E106: 799000 | F106: 2.27.2 | G106: 500000 | H106: aeb405111b7ab8d006242062f54bcb33
A107: 375000 | B107: Distribution Layer | C107: Rapid Deployed, Self-contained 5G cell site with attached Core | E107: 500000 | F107: 2.27.3 | G107: 250000 | H107: 26b405111b7ab8d006242062f54bcb34
A108: 75000 | B108: Distribution Layer | C108: Rapid Deployed, Self-contained 5G cell site with attached Core | E108: 100000 | F108: 2.27.4 | G108: 50000 | H108: aab405111b7ab8d006242062f54bcb34
A109: 200500 | B109: Distribution Layer | C109: Rapid Deployed, Self-contained 5G cell site with attached Core | E109: 300000 | F109: 2.27.5 | G109: 101000 | H109: 22b405111b7ab8d006242062f54bcb35
A110: 112500 | B110: Distribution Layer | C110: Rapid Deployed, Self-contained 5G cell site with attached Core | E110: 150000 | F110: 2.27.6 | G110: 75000 | H110: a6b405111b7ab8d006242062f54bcb35
A111: 350 | B111: Distribution Layer | C111: Rapid Deployed, Self-contained 5G cell site with attached Core | E111: 500 | F111: 2.27.7 | G111: 200 | H111: 2eb405111b7ab8d006242062f54bcb35
A112: 41500 | B112: Distribution Layer | C112: Bundled BBU/RRH (Base Band Unit/Remote Radio Head) Fixed Wireless | E112: 56000 | F112: 2.28.1 | G112: 27000 | H112: a2b405111b7ab8d006242062f54bcb36
A113: 100000 | B113: Distribution Layer | C113: Bundled BBU/RRH (Base Band Unit/Remote Radio Head) Fixed Wireless | E113: 115000 | F113: 2.28.2 | G113: 85000 | H113: 2ab405111b7ab8d006242062f54bcb36
A114: 57000 | B114: Distribution Layer | C114: Bundled BBU/RRH (Base Band Unit/Remote Radio Head) Mobility Wireless - nonMIMO | E114: 69000 | F114: 2.28.3 | G114: 45000 | H114: aeb405111b7ab8d006242062f54bcb36
A115: 226586 | B115: Distribution Layer | C115: Bundled BBU/RRH (Base Band Unit/Remote Radio Head) Mobility Wireless - mMIMO | E115: 368172 | F115: 2.28.4 | G115: 85000 | H115: 26b405111b7ab8d006242062f54bcb37
A116: 45500 | B116: Distribution Layer | C116: Bundled Open-RAN | E116: 52000 | F116: 2.29.1 | G116: 39000 | H116: 2ab405111b7ab8d006242062f54bcb37
A117: 108000 | B117: Distribution Layer | C117: Bundled Open-RAN | E117: 125000 | F117: 2.29.2 | G117: 91000 | H117: 2eb405111b7ab8d006242062f54bcb37
A118: 52500 | B118: Distribution Layer | C118: Bundled Open-RAN | E118: 60000 | F118: 2.29.3 | G118: 45000 | H118: 22b405111b7ab8d006242062f54bcb38
A119: 93 | B119: Distribution Layer | C119: SAS Integration Costs (per Radio) | E119: 124 | F119: 2.30.0 | G119: 62 | H119: 26b405111b7ab8d006242062f54bcb38
A120: 45927 | B120: Distribution Layer | C120: Open vRAN eNodeB Model is based on single band 50 site cluster. It includes RRU (Remote Radio Unit)/CU (Control Unit)/DU (Distributed Unit)/SW (Software)/NFVi (Network Functions Virtualization infrastructure). SW include all features, power licenses, optional features | E120: 64838 | F120: 2.31.1 | G120: 27016 | H120: aab405111b7ab8d006242062f54bcb38
A121: 47933 | B121: Distribution Layer | C121: Open vRAN eNodeB Model is based on single band 50 site cluster. It includes RRU (Remote Radio Unit)/CU (Control Unit)/DU (Distributed Unit)/SW (Software)/NFVi (Network Functions Virtualization infrastructure). SW include all features, power licenses, optional features | E121: 67670 | F121: 2.31.2 | G121: 28196 | H121: 22b405111b7ab8d006242062f54bcb39
A122: 51248 | B122: Distribution Layer | C122: Open vRAN eNodeB Model is based on single band 50 site cluster. It includes RRU (Remote Radio Unit)/CU (Control Unit)/DU (Distributed Unit)/SW (Software)/NFVi (Network Functions Virtualization infrastructure). SW include all features, power licenses, optional features | E122: 72350 | F122: 2.31.3 | G122: 30146 | H122: a6b405111b7ab8d006242062f54bcb39
A123: 51248 | B123: Distribution Layer | C123: Open vRAN eNodeB Model is based on single band 50 site cluster. It includes RRU (Remote Radio Unit)/CU (Control Unit)/DU (Distributed Unit)/SW (Software)/NFVi (Network Functions Virtualization infrastructure). SW include all features, power licenses, optional features | E123: 72350 | F123: 2.31.4 | G123: 30146 | H123: 2eb405111b7ab8d006242062f54bcb39
A124: 47550.5 | B124: Distribution Layer | C124: Open vRAN eNodeB Model is based on single band 50 site cluster. It includes RRU (Remote Radio Unit)/CU (Control Unit)/DU (Distributed Unit)/SW (Software)/NFVi (Network Functions Virtualization infrastructure). SW include all features, power licenses, optional features | E124: 67130 | F124: 2.31.5 | G124: 27971 | H124: a2b405111b7ab8d006242062f54bcb3a
A125: 73365 | B125: Distribution Layer | C125: Open vRAN eNodeB Model is based on single band 50 site cluster. It includes RRU (Remote Radio Unit)/CU (Control Unit)/DU (Distributed Unit)/SW (Software)/NFVi (Network Functions Virtualization infrastructure). SW include all features, power licenses, optional features | E125: 103574 | F125: 2.31.6 | G125: 43156 | H125: 2ab405111b7ab8d006242062f54bcb3a
A126: 107489 | B126: Distribution Layer | C126: Open vRAN eNodeB Model is based on single band 50 site cluster. It includes RRU (Remote Radio Unit)/CU (Control Unit)/DU (Distributed Unit)/SW (Software)/NFVi (Network Functions Virtualization infrastructure). SW include all features, power licenses, optional features | E126: 151749 | F126: 2.31.7 | G126: 63229 | H126: aeb405111b7ab8d006242062f54bcb3a
A127: 9231 | B127: Distribution Layer | C127: RAN (Open RAN/ vRAN) Components | E127: 13032 | F127: 2.32.1 | G127: 5430 | H127: a2b405111b7ab8d006242062f54bcb3b
A128: 9673 | B128: Distribution Layer | C128: RAN (Open RAN/ vRAN) Components | E128: 13656 | F128: 2.32.2 | G128: 5690 | H128: a6b405111b7ab8d006242062f54bcb3b
A129: 10778 | B129: Distribution Layer | C129: RAN (Open RAN/ vRAN) Components | E129: 15216 | F129: 2.32.3 | G129: 6340 | H129: aab405111b7ab8d006242062f54bcb3b
A130: 10778 | B130: Distribution Layer | C130: RAN (Open RAN/ vRAN) Components | E130: 15216 | F130: 2.32.4 | G130: 6340 | H130: aeb405111b7ab8d006242062f54bcb3b
A131: =(E131+G131)/2 -> 10778 | B131: Distribution Layer | C131: RAN (Open RAN/ vRAN) Components | E131: 15216 | F131: 2.32.5 | G131: 6340 | H131: a2b405111b7ab8d006242062f54bcb3c
A132: 10778 | B132: Distribution Layer | C132: RAN (Open RAN/ vRAN) Components | E132: 15216 | F132: 2.32.6 | G132: 6340 | H132: a6b405111b7ab8d006242062f54bcb3c
A133: 10778 | B133: Distribution Layer | C133: RAN (Open RAN/ vRAN) Components | E133: 15216 | F133: 2.32.7 | G133: 6340 | H133: aab405111b7ab8d006242062f54bcb3c
A134: 10778 | B134: Distribution Layer | C134: RAN (Open RAN/ vRAN) Components | E134: 15216 | F134: 2.32.8 | G134: 6340 | H134: aeb405111b7ab8d006242062f54bcb3c
A135: 6426 | B135: Distribution Layer | C135: RAN (Open RAN/ vRAN) Components | E135: 9072 | F135: 2.32.9 | G135: 3780 | H135: a2b405111b7ab8d006242062f54bcb3d
A136: 4600 | B136: Distribution Layer | C136: DU | E136: 5520 | F136: 2.33.1 | G136: 3680 | H136: a6b405111b7ab8d006242062f54bcb3d
A137: 12053 | B137: Distribution Layer | C137: DU | E137: 14463.6 | F137: 2.33.2 | G137: 9642.4 | H137: aab405111b7ab8d006242062f54bcb3d
A138: 9000 | B138: Distribution Layer | C138: DU | E138: 10000 | F138: 2.33.3 | G138: 8000 | H138: aeb405111b7ab8d006242062f54bcb3d
A139: 14969 | B139: Distribution Layer | C139: CU (Control Unit) | E139: 17962.8 | F139: 2.34.1 | G139: 11975.2 | H139: a2b405111b7ab8d006242062f54bcb3e
A140: 11000 | B140: Distribution Layer | C140: CU (Control Unit) | E140: 12000 | F140: 2.34.2 | G140: 10000 | H140: a6b405111b7ab8d006242062f54bcb3e
A141: 175 | B141: Distribution Layer | C141: SPF - Small form-factor pluggable transceiver | E141: 175 | F141: 2.35.1 | G141: 175 | H141: 2eb405111b7ab8d006242062f54bcb3e
A142: 1627 | B142: Distribution Layer | C142: GPS | E142: 1694 | F142: 2.36.1 | G142: 1560 | H142: 22b405111b7ab8d006242062f54bcb3f
A143: 525000 | B143: Distribution Layer | C143: GSM&UMTS (Universal Mobile Telecommunications System) | E143: 750000 | F143: 2.37.1 | G143: 300000 | H143: a6b405111b7ab8d006242062f54bcb3f
A144: 12000 | B144: Distribution Layer | C144: GSM&UMTS (Universal Mobile Telecommunications System) | E144: 13000 | F144: 2.37.2 | G144: 11000 | H144: 2eb405111b7ab8d006242062f54bcb3f
A145: 12000 | B145: Distribution Layer | C145: Small Cell | E145: 20000 | F145: 2.38.1 | G145: 4000 | H145: 22b405111b7ab8d006242062f54bcb40
A146: 80000 | B146: Distribution Layer | C146: Tower Shelter | E146: 85000 | F146: 2.39.1 | G146: 75000 | H146: 26b405111b7ab8d006242062f54bcb40
A147: 21906.5 | B147: Distribution Layer | C147: Outdoor Cabinets | E147: 33813 | F147: 2.40.1 | G147: 10000 | H147: 2ab405111b7ab8d006242062f54bcb40
A148: 5775 | B148: Distribution Layer | C148: Outdoor Cabinets | E148: 6300 | F148: 2.40.2 | G148: 5250 | H148: 2eb405111b7ab8d006242062f54bcb40
A149: 2150 | B149: Distribution Layer | C149: Outdoor Cabinets | E149: 2350 | F149: 2.40.3 | G149: 1950 | H149: 22b405111b7ab8d006242062f54bcb41
A150: 1675 | B150: Distribution Layer | C150: Outdoor Cabinets | E150: 1850 | F150: 2.40.4 | G150: 1500 | H150: 26b405111b7ab8d006242062f54bcb41
A151: 825 | B151: Distribution Layer | C151: Outdoor Cabinets | E151: 900 | F151: 2.40.5 | G151: 750 | H151: 2ab405111b7ab8d006242062f54bcb41
A152: 19663.5 | B152: Distribution Layer | C152: Indoor Cabinets | E152: 29561 | F152: 2.41.1 | G152: 9766 | H152: 2eb405111b7ab8d006242062f54bcb41
A153: 22000 | B153: Distribution Layer | C153: Indoor Cabinets | E153: 38000 | F153: 2.41.2 | G153: 6000 | H153: 22b405111b7ab8d006242062f54bcb42
A154: 725000 | B154: Core Layer | C154: EPC | E154: 1200000 | F154: 3.1.1 | G154: 250000 | H154: 26b405111b7ab8d006242062f54bcb42
A155: 1325000 | B155: Core Layer | C155: EPC | E155: 2550000 | F155: 3.1.2 | G155: 100000 | H155: 2ab405111b7ab8d006242062f54bcb42
A156: 2750000 | B156: Core Layer | C156: EPC | E156: 4250000 | F156: 3.1.3 | G156: 1250000 | H156: 2eb405111b7ab8d006242062f54bcb42
A157: 6361199 | B157: Core Layer | C157: EPC | E157: 8320688 | F157: 3.1.4 | G157: 4401710 | H157: 22b405111b7ab8d006242062f54bcb43
A158: 525000 | B158: Core Layer | C158: EPC | E158: 650000 | F158: 3.1.5 | G158: 400000 | H158: 26b405111b7ab8d006242062f54bcb43
A159: 1750000 | B159: Core Layer | C159: EPC | E159: 2250000 | F159: 3.1.6 | G159: 1250000 | H159: 2ab405111b7ab8d006242062f54bcb43
A160: 4250000 | B160: Core Layer | C160: EPC | E160: 6000000 | F160: 3.1.7 | G160: 2500000 | H160: 2eb405111b7ab8d006242062f54bcb43
A161: 816000 | B161: Core Layer | C161: EPC | E161: 1071000 | F161: 3.1.8 | G161: 561000 | H161: 22b405111b7ab8d006242062f54bcb44
A162: 325000 | B162: Core Layer | C162: EPC | E162: 500000 | F162: 3.1.9 | G162: 150000 | H162: 26b405111b7ab8d006242062f54bcb44
A163: 160000 | B163: Core Layer | C163: EPC | E163: 250000 | F163: 3.1.10 | G163: 70000 | H163: 2ab405111b7ab8d006242062f54bcb44
A164: 375000 | B164: Core Layer | C164: EPC | E164: 500000 | F164: 3.1.11 | G164: 250000 | H164: 2eb405111b7ab8d006242062f54bcb44
A165: 750000 | B165: Core Layer | C165: EPC | E165: 1000000 | F165: 3.1.12 | G165: 500000 | H165: 22b405111b7ab8d006242062f54bcb45
A166: 1750000 | B166: Core Layer | C166: EPC | E166: 2500000 | F166: 3.1.13 | G166: 1000000 | H166: 26b405111b7ab8d006242062f54bcb45
A167: 500000 | B167: Core Layer | C167: EPC | E167: 500000 | F167: 3.1.14 | G167: 500000 | H167: 2ab405111b7ab8d006242062f54bcb45
A168: 150000 | B168: Core Layer | C168: EPC | E168: 150000 | F168: 3.1.15 | G168: 150000 | H168: 2eb405111b7ab8d006242062f54bcb45
A169: 75000 | B169: Core Layer | C169: EPC | E169: 80000 | F169: 3.1.16 | G169: 70000 | H169: 22b405111b7ab8d006242062f54bcb46
A170: 325000 | B170: Core Layer | C170: EPC | E170: 400000 | F170: 3.1.17 | G170: 250000 | H170: 26b405111b7ab8d006242062f54bcb46
A171: 600000 | B171: Core Layer | C171: EPC | E171: 800000 | F171: 3.1.18 | G171: 400000 | H171: 2ab405111b7ab8d006242062f54bcb46
A172: 400000 | B172: Core Layer | C172: EPC | E172: 425000 | F172: 3.1.19 | G172: 375000 | H172: 2eb405111b7ab8d006242062f54bcb46
A173: 500000 | B173: Core Layer | C173: EPC | E173: 525000 | F173: 3.1.20 | G173: 475000 | H173: 22b405111b7ab8d006242062f54bcb47
A174: 6250000 | B174: Core Layer | C174: EPC | E174: 6250000 | F174: 3.1.21 | G174: 6250000 | H174: 26b405111b7ab8d006242062f54bcb47
A175: 10000000 | B175: Core Layer | C175: EPC | E175: 10000000 | F175: 3.1.22 | G175: 10000000 | H175: 2ab405111b7ab8d006242062f54bcb47
A176: 1079973.5 | B176: Core Layer | C176: EPC | E176: 1409947 | F176: 3.1.23 | G176: 750000 | H176: 2eb405111b7ab8d006242062f54bcb47
A177: 600000 | B177: Core Layer | C177: EPC | E177: 650000 | F177: 3.1.24 | G177: 550000 | H177: 22b405111b7ab8d006242062f54bcb48
A178: 825000 | B178: Core Layer | C178: EPC | E178: 1000000 | F178: 3.1.25 | G178: 650000 | H178: 26b405111b7ab8d006242062f54bcb48
A179: 760000 | B179: Core Layer | C179: Cloud Core | E179: 1200000 | F179: 3.2.1 | G179: 320000 | H179: 3ab405111b7ab8d006242062f54bcb48
A180: 4910344 | B180: Core Layer | C180: Cloud Core | E180: 8320688 | F180: 3.2.2 | G180: 1500000 | H180: 3eb405111b7ab8d006242062f54bcb48
A181: 13190844 | B181: Core Layer | C181: Cloud Core | E181: 24381688 | F181: 3.2.3 | G181: 2000000 | H181: 32b405111b7ab8d006242062f54bcb49
A182: 949230 | B182: Core Layer | C182: Cloud Core | E182: 1049230 | F182: 3.2.4 | G182: 849230 | H182: 36b405111b7ab8d006242062f54bcb49
A183: 776712.5 | B183: Core Layer | C183: RAN Core / EMS | E183: 1103425 | F183: 3.3.1 | G183: 450000 | H183: 3ab405111b7ab8d006242062f54bcb49
A184: 4910344 | B184: Core Layer | C184: RAN Core / EMS | E184: 8320688 | F184: 3.3.2 | G184: 1500000 | H184: 3eb405111b7ab8d006242062f54bcb49
A185: 15438575 | B185: Core Layer | C185: RAN Core / EMS | E185: 15888492 | F185: 3.3.3 | G185: 14988658 | H185: 32b405111b7ab8d006242062f54bcb4a
A186: 360000 | B186: Core Layer | C186: RAN Core / EMS | E186: 470000 | F186: 3.3.4 | G186: 250000 | H186: 36b405111b7ab8d006242062f54bcb4a
A187: 225000 | B187: Core Layer | C187: RAN Core / EMS | E187: 300000 | F187: 3.3.5 | G187: 150000 | H187: 3ab405111b7ab8d006242062f54bcb4a
A188: 325000 | B188: Core Layer | C188: RAN Core / EMS | E188: 500000 | F188: 3.3.6 | G188: 150000 | H188: 3eb405111b7ab8d006242062f54bcb4a
A189: 1118000 | B189: Core Layer | C189: WDM & OTN – Core Equipment (Wavelength Division Multiplexing & Optical Transport Network | E189: 2100000 | F189: 3.4.1 | G189: 136000 | H189: b2b405111b7ab8d006242062f54bcb4b
A190: 17750 | B190: Core Layer | C190: Core Server Hardware | E190: 18000 | F190: 3.5.1 | G190: 17500 | H190: b6b405111b7ab8d006242062f54bcb4b
A191: 19750 | B191: Core Layer | C191: Core Server Hardware | E191: 20000 | F191: 3.5.2 | G191: 19500 | H191: bab405111b7ab8d006242062f54bcb4b
A192: 14000 | B192: Core Layer | C192: Core Server Hardware | E192: 15000 | F192: 3.5.3 | G192: 13000 | H192: beb405111b7ab8d006242062f54bcb4b
A193: 130000 | B193: Core Layer | C193: Core Server Hardware | E193: 250000 | F193: 3.5.4 | G193: 10000 | H193: b2b405111b7ab8d006242062f54bcb4c
A194: 208333.5 | B194: Core Layer | C194: Core Server Hardware | E194: 391667 | F194: 3.5.5 | G194: 25000 | H194: b6b405111b7ab8d006242062f54bcb4c
A195: =(E195+G195)/2 -> 587500 | B195: Core Layer | C195: Core Server Hardware | E195: 783333 | F195: 3.5.6 | G195: 391667 | H195: bab405111b7ab8d006242062f54bcb4c
A196: 991666.5 | B196: Core Layer | C196: Core Server Hardware | E196: 1200000 | F196: 3.5.7 | G196: 783333 | H196: beb405111b7ab8d006242062f54bcb4c
A197: 175000 | B197: Core Layer | C197: Core Server Hardware | E197: 325000 | F197: 3.5.8 | G197: 25000 | H197: b2b405111b7ab8d006242062f54bcb4d
A198: 487500 | B198: Core Layer | C198: Core Server Hardware | E198: 650000 | F198: 3.5.9 | G198: 325000 | H198: b6b405111b7ab8d006242062f54bcb4d
A199: 825000 | B199: Core Layer | C199: Core Server Hardware | E199: 1000000 | F199: 3.5.10 | G199: 650000 | H199: bab405111b7ab8d006242062f54bcb4d
A200: 525000 | B200: Core Layer | C200: Operation Support Systems (OSS) | E200: 550000 | F200: 3.6.1 | G200: 500000 | H200: beb405111b7ab8d006242062f54bcb4d
... 331 more rows

Sheet choice_values (hidden)
I1: -- None --
I2: Cell site
I3: Mobile switching center
I4: Central office
I5: Network operations center
I6: Headquarters
I7: Other
